Workbook

Sheet YXKK 6KV
A1: YXKK系列（6KV）高压三相异步电动机技术数据
A2: 型号 | B2: 额定功率（kW） | C2: 定子电流（A） | D2: 额定转速（r/min） | E2: 效率（%） | F2: 功率因数（cosψ） | G2: 最大转矩额定转矩 | H2: 堵转转矩额定转矩 | I2: 堵转电流额定电流 | J2: 电动机转动惯量 | L2: 概量（kg)
J3: 电机 Jm （kg·m2） | K3: 允许负载 J (kg·m2）
A4: YXKK3553-2 | B4: 220 | C4: =B4*100/1.732/E4/F4/6 -> 26.8 | D4: 2967 | E4: 93.1 | F4: 0.85 | G4: 1.8 | H4: 0.6 | I4: 7.0 | J4: 2.7 | K4: 22 | L4: 2240
A5: YXKK3554-2 | B5: 250 | C5: 30.4 | D5: 2968 | E5: 93.2 | F5: 0.85 | G5: 1.8 | H5: 0.6 | I5: 7.0 | J5: 3.0 | K5: 24 | L5: 2320
A6: YXKK3555-2 | B6: 280 | C6: 33.9 | D6: 2970 | E6: 93.4 | F6: 0.85 | G6: 1.8 | H6: 0.6 | I6: 7.0 | J6: 3.4 | K6: 26 | L6: 2400
A7: YXKK3556-2 | B7: 315 | C7: 38.1 | D7: 2970 | E7: 93.7 | F7: 0.85 | G7: 1.8 | H7: 0.6 | I7: 7.0 | J7: 3.6 | K7: 27 | L7: 2470
A8: YXKK4001-2 | B8: 355 | C8: 42.3 | D8: 2973 | E8: 93.9 | F8: 0.86 | G8: 1.8 | H8: 0.6 | I8: 7.0 | J8: 5.3 | K8: 30 | L8: 2940
A9: YXKK4002-2 | B9: 400 | C9: 47.5 | D9: 2973 | E9: 94.2 | F9: 0.86 | G9: 1.8 | H9: 0.6 | I9: 7.0 | J9: 5.7 | K9: 32 | L9: 3000
A10: YXKK4003-2 | B10: 450 | C10: 53.3 | D10: 2975 | E10: 94.4 | F10: 0.86 | G10: 1.8 | H10: 0.6 | I10: 7.0 | J10: 6.5 | K10: 34 | L10: 3080
A11: YXKK4004-2 | B11: 500 | C11: 59.1 | D11: 2976 | E11: 94.7 | F11: 0.86 | G11: 1.8 | H11: 0.6 | I11: 7.0 | J11: 6.8 | K11: 35 | L11: 3140
A12: YXKK4005-2 | B12: 560 | C12: 66.0 | D12: 2977 | E12: 94.9 | F12: 0.86 | G12: 1.8 | H12: 0.6 | I12: 7.0 | J12: 7.1 | K12: 38 | L12: 3220
A13: YXKK4501-2 | B13: 560 | C13: 66.0 | D13: 2978 | E13: 94.9 | F13: 0.86 | G13: 1.8 | H13: 0.6 | I13: 7.0 | J13: 9.4 | K13: 40 | L13: 4220
A14: YXKK4502-2 | B14: 630 | C14: 73.3 | D14: 2978 | E14: 95.0 | F14: 0.87 | G14: 1.8 | H14: 0.6 | I14: 7.0 | J14: 10.8 | K14: 44 | L14: 4450
A15: YXKK4503-2 | B15: 710 | C15: 82.6 | D15: 2977 | E15: 95.1 | F15: 0.87 | G15: 1.8 | H15: 0.6 | I15: 7.0 | J15: 11.8 | K15: 46 | L15: 4680
A16: YXKK4504-2 | B16: 800 | C16: 92.8 | D16: 2976 | E16: 95.3 | F16: 0.87 | G16: 1.8 | H16: 0.6 | I16: 7.0 | J16: 12.4 | K16: 48 | L16: 4920
A17: YXKK4505-2 | B17: 900 | C17: 104 | D17: 2974 | E17: 95.5 | F17: 0.87 | G17: 1.8 | H17: 0.6 | I17: 7.0 | J17: 12.8 | K17: 50 | L17: 5170
A18: YXKK5001-2 | B18: 900 | C18: 104 | D18: 2977 | E18: 95.5 | F18: 0.87 | G18: 1.8 | H18: 0.6 | I18: 7.0 | J18: 17.2 | K18: 73 | L18: 5490
A19: YXKK5002-2 | B19: 1000 | C19: 116 | D19: 2978 | E19: 95.5 | F19: 0.87 | G19: 1.8 | H19: 0.6 | I19: 7.0 | J19: 19.1 | K19: 85 | L19: 5700
A20: YXKK5003-2 | B20: 1120 | C20: 130 | D20: 2978 | E20: 95.6 | F20: 0.87 | G20: 1.8 | H20: 0.6 | I20: 7.0 | J20: 21.1 | K20: 93 | L20: 5910
A21: YXKK5004-2 | B21: 1250 | C21: 144 | D21: 2979 | E21: 95.8 | F21: 0.87 | G21: 1.8 | H21: 0.6 | I21: 7.0 | J21: 23.0 | K21: 101 | L21: 6130
A22: YXKK5005-2 | B22: 1400 | C22: 160 | D22: 2979 | E22: 95.9 | F22: 0.88 | G22: 1.8 | H22: 0.6 | I22: 7.0 | J22: 24.3 | K22: 105 | L22: 6360
A23: YXKK560S1-2 | B23: 1400 | C23: 160 | D23: 2978 | E23: 95.9 | F23: 0.88 | G23: 1.8 | H23: 0.6 | I23: 7.0 | J23: 39.8 | K23: 106 | L23: 6900
A24: YXKK5601-2 | B24: 1600 | C24: 182 | D24: 2979 | E24: 96.0 | F24: 0.88 | G24: 1.8 | H24: 0.6 | I24: 7.0 | J24: 42.2 | K24: 107 | L24: 7160
A25: YXKK5602-2 | B25: 1800 | C25: 205 | D25: 2981 | E25: 96.0 | F25: 0.88 | G25: 1.8 | H25: 0.6 | I25: 7.0 | J25: 46.4 | K25: 108 | L25: 7420
A26: YXKK5603-2 | B26: 2000 | C26: 227 | D26: 2981 | E26: 96.2 | F26: 0.88 | G26: 1.8 | H26: 0.6 | I26: 7.0 | J26: 47.0 | K26: 109 | L26: 7680
A27: YXKK630S1-2 | B27: 2000 | C27: 227 | D27: 2981 | E27: 96.2 | F27: 0.88 | G27: 1.8 | H27: 0.6 | I27: 7.0 | J27: 47.4 | K27: 110 | L27: 9610
A28: YXKK6301-2 | B28: 2100 | C28: 239 | D28: 2982 | E28: 96.2 | F28: 0.88 | G28: 1.8 | H28: 0.6 | I28: 7.0 | J28: 49.2 | K28: 112 | L28: 9820
A29: YXKK6302-2 | B29: 2240 | C29: 254 | D29: 2982 | E29: 96.3 | F29: 0.88 | G29: 1.8 | H29: 0.6 | I29: 7.0 | J29: 51.7 | K29: 114 | L29: 10070
A30: YXKK6303-2 | B30: 2350 | C30: 267 | D30: 2982 | E30: 96.3 | F30: 0.88 | G30: 1.8 | H30: 0.6 | I30: 7.0 | J30: 54.5 | K30: 117 | L30: 10270
A31: YXKK6304-2 | B31: 2500 | C31: 284 | D31: 2982 | E31: 96.4 | F31: 0.88 | G31: 1.8 | H31: 0.6 | I31: 7.0 | J31: 57.1 | K31: 120 | L31: 10470
A32: YXKK6305-2 | B32: 2650 | C32: 301 | D32: 2982 | E32: 96.4 | F32: 0.88 | G32: 1.8 | H32: 0.6 | I32: 7.0 | J32: 60.0 | K32: 123 | L32: 10670
A33: YXKK6306-2 | B33: 2800 | C33: 318 | D33: 2982 | E33: 96.4 | F33: 0.88 | G33: 1.8 | H33: 0.6 | I33: 7.0 | J33: 63.2 | K33: 126 | L33: 10870
A34: YXKK6307-2 | B34: 2900 | C34: 329 | D34: 2982 | E34: 96.4 | F34: 0.88 | G34: 1.8 | H34: 0.6 | I34: 7.0 | J34: 66.5 | K34: 128 | L34: 11040
A35: YXKK6308-2 | B35: 3150 | C35: 357 | D35: 2983 | E35: 96.5 | F35: 0.88 | G35: 1.8 | H35: 0.6 | I35: 7.0 | J35: 69.8 | K35: 131 | L35: 11390
A36: YXKK3551-4 | B36: 185 | C36: =B36*100/1.732/E36/F36/6 -> 22.4 | D36: 2983 | E36: 93.3 | F36: 0.85 | G36: 1.8 | H36: 0.7 | I36: 6.5 | J36: 3.0 | K36: 68 | L36: 2470
A37: YXKK3552-4 | B37: 200 | C37: 24.2 | D37: 2983 | E37: 93.4 | F37: 0.85 | G37: 1.8 | H37: 0.7 | I37: 6.5 | J37: 3.4 | K37: 78 | L37: 2520
A38: YXKK3553-4 | B38: 220 | C38: 26.6 | D38: 1487 | E38: 93.5 | F38: 0.85 | G38: 1.8 | H38: 0.7 | I38: 6.5 | J38: 3.8 | K38: 88 | L38: 2570
A39: YXKK3554-4 | B39: 250 | C39: 30.2 | D39: 1487 | E39: 93.6 | F39: 0.85 | G39: 1.8 | H39: 0.7 | I39: 6.5 | J39: 4.2 | K39: 97 | L39: 2620
A40: YXKK3555-4 | B40: 280 | C40: 33.4 | D40: 1487 | E40: 93.7 | F40: 0.86 | G40: 1.8 | H40: 0.7 | I40: 6.5 | J40: 4.6 | K40: 102 | L40: 2680
A41: YXKK3556-4 | B41: 315 | C41: 37.6 | D41: 1487 | E41: 93.8 | F41: 0.86 | G41: 1.8 | H41: 0.7 | I41: 6.5 | J41: 5.0 | K41: 107 | L41: 2730
A42: YXKK400S2-4 | B42: 280 | C42: 33.4 | D42: 1487 | E42: 93.7 | F42: 0.86 | G42: 1.8 | H42: 0.7 | I42: 6.5 | J42: 5.8 | K42: 108 | L42: 2800
A43: YXKK400S1-4 | B43: 315 | C43: 37.6 | D43: 1487 | E43: 93.8 | F43: 0.86 | G43: 1.8 | H43: 0.7 | I43: 6.5 | J43: 6.0 | K43: 120 | L43: 2870
A44: YXKK4001-4 | B44: 355 | C44: 42.3 | D44: 1487 | E44: 94.0 | F44: 0.86 | G44: 1.8 | H44: 0.7 | I44: 6.5 | J44: 6.2 | K44: 133 | L44: 2920
A45: YXKK4002-4 | B45: 400 | C45: 47.5 | D45: 1487 | E45: 94.2 | F45: 0.86 | G45: 1.8 | H45: 0.7 | I45: 6.5 | J45: 6.5 | K45: 147 | L45: 2995
A46: YXKK4003-4 | B46: 450 | C46: 53.3 | D46: 1487 | E46: 94.4 | F46: 0.86 | G46: 1.8 | H46: 0.7 | I46: 6.5 | J46: 7.0 | K46: 161 | L46: 3045
A47: YXKK4004-4 | B47: 500 | C47: 59.2 | D47: 1487 | E47: 94.5 | F47: 0.86 | G47: 1.8 | H47: 0.7 | I47: 6.5 | J47: 7.5 | K47: 170 | L47: 3145
A48: YXKK4005-4 | B48: 560 | C48: 66.2 | D48: 1487 | E48: 94.7 | F48: 0.86 | G48: 1.8 | H48: 0.7 | I48: 6.5 | J48: 8.0 | K48: 175 | L48: 3215
A49: YXKK450S1-4 | B49: 500 | C49: 59.2 | D49: 1487 | E49: 94.5 | F49: 0.86 | G49: 1.8 | H49: 0.7 | I49: 6.5 | J49: 10.0 | K49: 178 | L49: 3850
A50: YXKK4501-4 | B50: 560 | C50: 66.2 | D50: 1487 | E50: 94.7 | F50: 0.86 | G50: 1.8 | H50: 0.7 | I50: 6.5 | J50: 11.0 | K50: 197 | L50: 4010
A51: YXKK4502-4 | B51: 630 | C51: 74.3 | D51: 1487 | E51: 94.9 | F51: 0.86 | G51: 1.8 | H51: 0.7 | I51: 6.5 | J51: 12.0 | K51: 218 | L51: 4170
A52: YXKK4503-4 | B52: 710 | C52: 83.6 | D52: 1487 | E52: 95.0 | F52: 0.86 | G52: 1.8 | H52: 0.7 | I52: 6.5 | J52: 13.0 | K52: 241 | L52: 4330
A53: YXKK4504-4 | B53: 800 | C53: 92.8 | D53: 1487 | E53: 95.3 | F53: 0.87 | G53: 1.8 | H53: 0.7 | I53: 6.5 | J53: 14.0 | K53: 250 | L53: 4510
A54: YXKK4505-4 | B54: 900 | C54: 104 | D54: 1487 | E54: 95.4 | F54: 0.87 | G54: 1.8 | H54: 0.7 | I54: 6.5 | J54: 15.0 | K54: 261 | L54: 4670
A55: YXKK500S1-4 | B55: 800 | C55: 92.8 | D55: 1489 | E55: 95.3 | F55: 0.87 | G55: 1.8 | H55: 0.7 | I55: 6.5 | J55: 22.0 | K55: 266 | L55: 5540
A56: YXKK5001-4 | B56: 900 | C56: 104 | D56: 1489 | E56: 95.4 | F56: 0.87 | G56: 1.8 | H56: 0.7 | I56: 6.5 | J56: 24.0 | K56: 290 | L56: 5670
A57: YXKK5002-4 | B57: 1000 | C57: 116 | D57: 1489 | E57: 95.5 | F57: 0.87 | G57: 1.8 | H57: 0.7 | I57: 6.5 | J57: 26.0 | K57: 318 | L57: 5760
A58: YXKK5003-4 | B58: 1120 | C58: 130 | D58: 1489 | E58: 95.5 | F58: 0.87 | G58: 1.8 | H58: 0.7 | I58: 6.5 | J58: 30.0 | K58: 347 | L58: 5870
A59: YXKK5004-4 | B59: 1250 | C59: 143 | D59: 1489 | E59: 95.7 | F59: 0.88 | G59: 1.8 | H59: 0.7 | I59: 6.5 | J59: 34.0 | K59: 363 | L59: 5990
A60: YXKK5005-4 | B60: 1400 | C60: 160 | D60: 1489 | E60: 95.8 | F60: 0.88 | G60: 1.8 | H60: 0.7 | I60: 6.5 | J60: 38.0 | K60: 375 | L60: 6110
A61: YXKK560S2-4 | B61: 1250 | C61: 143 | D61: 1490 | E61: 95.7 | F61: 0.88 | G61: 1.8 | H61: 0.6 | I61: 6.5 | J61: 51.0 | K61: 379 | L61: 7950
A62: YXKK560S1-4 | B62: 1400 | C62: 160 | D62: 1490 | E62: 95.8 | F62: 0.88 | G62: 1.8 | H62: 0.6 | I62: 6.5 | J62: 57.0 | K62: 460 | L62: 8200
A63: YXKK5601-4 | B63: 1600 | C63: 182 | D63: 1490 | E63: 95.9 | F63: 0.88 | G63: 1.8 | H63: 0.6 | I63: 6.5 | J63: 60.0 | K63: 470 | L63: 8450
A64: YXKK5602-4 | B64: 1800 | C64: 205 | D64: 1490 | E64: 96.0 | F64: 0.88 | G64: 1.8 | H64: 0.6 | I64: 6.5 | J64: 65.0 | K64: 480 | L64: 8710
A65: YXKK5603-4 | B65: 2000 | C65: 228 | D65: 1490 | E65: 96.1 | F65: 0.88 | G65: 1.8 | H65: 0.6 | I65: 6.5 | J65: 71.0 | K65: 490 | L65: 8910
A66: YXKK630S2-4 | B66: 1800 | C66: 205 | D66: 1491 | E66: 96.0 | F66: 0.88 | G66: 1.8 | H66: 0.6 | I66: 6.5 | J66: 96.0 | K66: 498 | L66: 10800
A67: YXKK630S1-4 | B67: 2000 | C67: 228 | D67: 1491 | E67: 96.1 | F67: 0.88 | G67: 1.8 | H67: 0.6 | I67: 6.5 | J67: 102.0 | K67: 540 | L67: 11200
A68: YXKK6301-4 | B68: 2100 | C68: =B68*100/1.732/E68/F68/6 -> 239 | D68: 1491 | E68: 96.1 | F68: 0.88 | G68: 1.8 | H68: 0.6 | I68: 6.5 | J68: 108.0 | K68: 570 | L68: 11400
A69: YXKK6302-4 | B69: 2240 | C69: 255 | D69: 1491 | E69: 96.2 | F69: 0.88 | G69: 1.8 | H69: 0.6 | I69: 6.5 | J69: 112.0 | K69: 584 | L69: 11600
A70: YXKK6303-4 | B70: 2350 | C70: 267 | D70: 1491 | E70: 96.2 | F70: 0.88 | G70: 1.8 | H70: 0.6 | I70: 6.5 | J70: 116.0 | K70: 599 | L70: 11800
A71: YXKK6304-4 | B71: 2500 | C71: 284 | D71: 1491 | E71: 96.3 | F71: 0.88 | G71: 1.8 | H71: 0.6 | I71: 6.5 | J71: 120.0 | K71: 615 | L71: 12000
A72: YXKK6305-4 | B72: 2650 | C72: 301 | D72: 1491 | E72: 96.3 | F72: 0.88 | G72: 1.8 | H72: 0.6 | I72: 6.5 | J72: 125.0 | K72: 632 | L72: 12190
A73: YXKK6306-4 | B73: 2800 | C73: 318 | D73: 1491 | E73: 96.3 | F73: 0.88 | G73: 1.8 | H73: 0.6 | I73: 6.5 | J73: 130.0 | K73: 650 | L73: 12390
A74: YXKK6307-4 | B74: 2900 | C74: 329 | D74: 1491 | E74: 96.3 | F74: 0.88 | G74: 1.8 | H74: 0.6 | I74: 6.5 | J74: 134.0 | K74: 668 | L74: 12600
A75: YXKK6308-4 | B75: 3150 | C75: 357 | D75: 1491 | E75: 96.5 | F75: 0.88 | G75: 1.8 | H75: 0.6 | I75: 6.5 | J75: 138.0 | K75: 685 | L75: 12800
A76: YXKK3553-6 | B76: 185 | C76: 23.3 | D76: 986 | E76: 93.0 | F76: 0.82 | G76: 1.8 | H76: 0.7 | I76: 6.0 | J76: 4.0 | K76: 138 | L76: 2430
A77: YXKK3554-6 | B77: 200 | C77: 25.2 | D77: 986 | E77: 93.1 | F77: 0.82 | G77: 1.8 | H77: 0.7 | I77: 6.0 | J77: 4.8 | K77: 150 | L77: 2480
A78: YXKK3555-6 | B78: 220 | C78: 27.7 | D78: 986 | E78: 93.3 | F78: 0.82 | G78: 1.8 | H78: 0.7 | I78: 6.0 | J78: 5.7 | K78: 162 | L78: 2530
A79: YXKK3556-6 | B79: 250 | C79: 31.4 | D79: 986 | E79: 93.5 | F79: 0.82 | G79: 1.8 | H79: 0.7 | I79: 6.0 | J79: 6.9 | K79: 175 | L79: 2570
A80: YXKK400S3-6 | B80: 185 | C80: 23.3 | D80: 989 | E80: 93.0 | F80: 0.82 | G80: 1.8 | H80: 0.7 | I80: 6.0 | J80: 8.0 | K80: 193 | L80: 2700
A81: YXKK400S2-6 | B81: 200 | C81: 25.2 | D81: 989 | E81: 93.1 | F81: 0.82 | G81: 1.8 | H81: 0.7 | I81: 6.0 | J81: 8.7 | K81: 210 | L81: 2760
A82: YXKK400S1-6 | B82: 220 | C82: 27.7 | D82: 989 | E82: 93.3 | F82: 0.82 | G82: 1.8 | H82: 0.7 | I82: 6.0 | J82: 9.0 | K82: 236 | L82: 2820
A83: YXKK4001-6 | B83: 250 | C83: 31.4 | D83: 989 | E83: 93.5 | F83: 0.82 | G83: 1.8 | H83: 0.7 | I83: 6.0 | J83: 10.0 | K83: 262 | L83: 2880
A84: YXKK4002-6 | B84: 280 | C84: 35.0 | D84: 989 | E84: 93.8 | F84: 0.82 | G84: 1.8 | H84: 0.7 | I84: 6.0 | J84: 10.8 | K84: 291 | L84: 2990
A85: YXKK4003-6 | B85: 315 | C85: 39.3 | D85: 989 | E85: 94.0 | F85: 0.82 | G85: 1.8 | H85: 0.7 | I85: 6.0 | J85: 11.0 | K85: 324 | L85: 3040
A86: YXKK4004-6 | B86: 355 | C86: 43.7 | D86: 989 | E86: 94.2 | F86: 0.83 | G86: 1.8 | H86: 0.7 | I86: 6.0 | J86: 11.5 | K86: 340 | L86: 3100
A87: YXKK4005-6 | B87: 400 | C87: 49.2 | D87: 989 | E87: 94.3 | F87: 0.83 | G87: 1.8 | H87: 0.7 | I87: 6.0 | J87: 12.2 | K87: 358 | L87: 3160
A88: YXKK450S1-6 | B88: 355 | C88: 43.7 | D88: 990 | E88: 94.2 | F88: 0.83 | G88: 1.8 | H88: 0.7 | I88: 6.0 | J88: 14.0 | K88: 361 | L88: 3680
A89: YXKK4501-6 | B89: 400 | C89: 49.2 | D89: 990 | E89: 94.3 | F89: 0.83 | G89: 1.8 | H89: 0.7 | I89: 6.0 | J89: 15.0 | K89: 401 | L89: 3790
A90: YXKK4502-6 | B90: 450 | C90: 55.2 | D90: 990 | E90: 94.5 | F90: 0.83 | G90: 1.8 | H90: 0.7 | I90: 6.0 | J90: 16.0 | K90: 440 | L90: 3920
A91: YXKK4503-6 | B91: 500 | C91: 61.1 | D91: 990 | E91: 94.8 | F91: 0.83 | G91: 1.8 | H91: 0.7 | I91: 6.0 | J91: 17.0 | K91: 487 | L91: 4050
A92: YXKK4504-6 | B92: 560 | C92: 67.6 | D92: 990 | E92: 94.9 | F92: 0.84 | G92: 1.8 | H92: 0.7 | I92: 6.0 | J92: 18.0 | K92: 519 | L92: 4190
A93: YXKK4505-6 | B93: 630 | C93: 76.0 | D93: 990 | E93: 95.0 | F93: 0.84 | G93: 1.8 | H93: 0.7 | I93: 6.0 | J93: 19.0 | K93: 538 | L93: 4320
A94: YXKK500S1-6 | B94: 560 | C94: 67.6 | D94: 992 | E94: 94.9 | F94: 0.84 | G94: 1.8 | H94: 0.7 | I94: 6.0 | J94: 27.0 | K94: 540 | L94: 5110
A95: YXKK5001-6 | B95: 630 | C95: 76.0 | D95: 992 | E95: 95.0 | F95: 0.84 | G95: 1.8 | H95: 0.7 | I95: 6.0 | J95: 32.5 | K95: 599 | L95: 5200
A96: YXKK5002-6 | B96: 710 | C96: 85.4 | D96: 992 | E96: 95.2 | F96: 0.84 | G96: 1.8 | H96: 0.7 | I96: 6.0 | J96: 34.0 | K96: 665 | L96: 5280
A97: YXKK5003-6 | B97: 800 | C97: 96.1 | D97: 992 | E97: 95.4 | F97: 0.84 | G97: 1.8 | H97: 0.7 | I97: 6.0 | J97: 40.0 | K97: 736 | L97: 5960
A98: YXKK5004-6 | B98: 900 | C98: 107 | D98: 992 | E98: 95.5 | F98: 0.85 | G98: 1.8 | H98: 0.7 | I98: 6.0 | J98: 45.0 | K98: 780 | L98: 6040
A99: YXKK5005-6 | B99: 1000 | C99: 119 | D99: 992 | E99: 95.5 | F99: 0.85 | G99: 1.8 | H99: 0.7 | I99: 6.0 | J99: 49.0 | K99: 802 | L99: 6120
A100: YXKK560S2-6 | B100: 900 | C100: =B100*100/1.732/E100/F100/6 -> 107 | D100: 993 | E100: 95.5 | F100: 0.85 | G100: 1.8 | H100: 0.7 | I100: 6.5 | J100: 64.0 | K100: 805 | L100: 7800
A101: YXKK560S1-6 | B101: 1000 | C101: 119 | D101: 993 | E101: 95.5 | F101: 0.85 | G101: 1.8 | H101: 0.7 | I101: 6.5 | J101: 70.0 | K101: 886 | L101: 8150
A102: YXKK5601-6 | B102: 1120 | C102: 133 | D102: 993 | E102: 95.6 | F102: 0.85 | G102: 1.8 | H102: 0.7 | I102: 6.5 | J102: 75.0 | K102: 927 | L102: 8400
A103: YXKK5602-6 | B103: 1250 | C103: 146 | D103: 993 | E103: 95.8 | F103: 0.86 | G103: 1.8 | H103: 0.7 | I103: 6.5 | J103: 80.0 | K103: 968 | L103: 8650
A104: YXKK5603-6 | B104: 1400 | C104: 163 | D104: 993 | E104: 95.9 | F104: 0.86 | G104: 1.8 | H104: 0.7 | I104: 6.5 | J104: 86.0 | K104: 1010 | L104: 8900
A105: YXKK6302-6 | B105: 1250 | C105: 146 | D105: 993 | E105: 95.8 | F105: 0.86 | G105: 1.8 | H105: 0.7 | I105: 6.5 | J105: 139 | K105: 1068 | L105: 11100
A106: YXKK6303-6 | B106: 1400 | C106: 163 | D106: 993 | E106: 95.9 | F106: 0.86 | G106: 1.8 | H106: 0.7 | I106: 6.5 | J106: 147 | K106: 1192 | L106: 11500
A107: YXKK6304-6 | B107: 1600 | C107: 186 | D107: 993 | E107: 96.0 | F107: 0.86 | G107: 1.8 | H107: 0.7 | I107: 6.5 | J107: 162 | K107: 1312 | L107: 11850
A108: YXKK6305-6 | B108: 1800 | C108: 210 | D108: 993 | E108: 96.0 | F108: 0.86 | G108: 1.8 | H108: 0.7 | I108: 6.5 | J108: 177 | K108: 1430 | L108: 12250
A109: YXKK6306-6 | B109: 2000 | C109: 233 | D109: 993 | E109: 96.2 | F109: 0.86 | G109: 1.8 | H109: 0.7 | I109: 6.5 | J109: 192 | K109: 1560 | L109: 12650
A110: YXKK6307-6 | B110: 2100 | C110: 244 | D110: 993 | E110: 96.2 | F110: 0.86 | G110: 1.8 | H110: 0.7 | I110: 6.5 | J110: 207 | K110: 1685 | L110: 12900
A111: YXKK6308-6 | B111: 2240 | C111: 261 | D111: 993 | E111: 96.2 | F111: 0.86 | G111: 1.8 | H111: 0.7 | I111: 6.5 | J111: 222 | K111: 1815 | L111: 13220
A112: YXKK4001-8 | B112: 185 | C112: 24.5 | D112: 742 | E112: 93.0 | F112: 0.78 | G112: 1.8 | H112: 0.8 | I112: 5.5 | J112: 11.0 | K112: 406 | L112: 2845
A113: YXKK4002-8 | B113: 200 | C113: 26.5 | D113: 742 | E113: 93.2 | F113: 0.78 | G113: 1.8 | H113: 0.8 | I113: 5.5 | J113: 12.0 | K113: 450 | L113: 2900
A114: YXKK4003-8 | B114: 220 | C114: 29.1 | D114: 742 | E114: 93.4 | F114: 0.78 | G114: 1.8 | H114: 0.8 | I114: 5.5 | J114: 13.0 | K114: 502 | L114: 2970
A115: YXKK4004-8 | B115: 250 | C115: 32.6 | D115: 742 | E115: 93.5 | F115: 0.79 | G115: 1.8 | H115: 0.8 | I115: 5.5 | J115: 14.0 | K115: 545 | L115: 3040
A116: YXKK4005-8 | B116: 280 | C116: 36.4 | D116: 742 | E116: 93.7 | F116: 0.79 | G116: 1.8 | H116: 0.8 | I116: 5.5 | J116: 15.0 | K116: 580 | L116: 3110
A117: YXKK450S1-8 | B117: 250 | C117: 32.6 | D117: 739 | E117: 93.5 | F117: 0.79 | G117: 1.8 | H117: 0.8 | I117: 5.5 | J117: 16.0 | K117: 558 | L117: 4635
A118: YXKK4501-8 | B118: 280 | C118: 36.4 | D118: 739 | E118: 93.7 | F118: 0.79 | G118: 1.8 | H118: 0.8 | I118: 5.5 | J118: 17.0 | K118: 622 | L118: 4715
A119: YXKK4502-8 | B119: 315 | C119: 40.9 | D119: 739 | E119: 93.9 | F119: 0.79 | G119: 1.8 | H119: 0.8 | I119: 5.5 | J119: 18.0 | K119: 693 | L119: 4795
A120: YXKK4503-8 | B120: 355 | C120: 46.0 | D120: 739 | E120: 94.0 | F120: 0.79 | G120: 1.8 | H120: 0.8 | I120: 5.5 | J120: 19.0 | K120: 772 | L120: 4875
A121: YXKK4504-8 | B121: 400 | C121: 51.1 | D121: 739 | E121: 94.2 | F121: 0.80 | G121: 1.8 | H121: 0.8 | I121: 5.5 | J121: 20.0 | K121: 830 | L121: 4965
A122: YXKK4505-8 | B122: 450 | C122: 57.4 | D122: 739 | E122: 94.3 | F122: 0.80 | G122: 1.8 | H122: 0.8 | I122: 5.5 | J122: 21.0 | K122: 880 | L122: 5055
A123: YXKK500S1-8 | B123: 400 | C123: 51.1 | D123: 743 | E123: 94.2 | F123: 0.80 | G123: 1.8 | H123: 0.8 | I123: 5.5 | J123: 30.0 | K123: 853 | L123: 5250
A124: YXKK5001-8 | B124: 450 | C124: 57.4 | D124: 743 | E124: 94.3 | F124: 0.80 | G124: 1.8 | H124: 0.8 | I124: 5.5 | J124: 34.0 | K124: 941 | L124: 5420
A125: YXKK5002-8 | B125: 500 | C125: 63.5 | D125: 743 | E125: 94.7 | F125: 0.80 | G125: 1.8 | H125: 0.8 | I125: 5.5 | J125: 38.0 | K125: 1041 | L125: 5570
A126: YXKK5003-8 | B126: 560 | C126: 71.0 | D126: 743 | E126: 94.9 | F126: 0.80 | G126: 1.8 | H126: 0.8 | I126: 5.5 | J126: 42.0 | K126: 1160 | L126: 5800
A127: YXKK5004-8 | B127: 630 | C127: 77.8 | D127: 743 | E127: 95.0 | F127: 0.82 | G127: 1.8 | H127: 0.8 | I127: 5.5 | J127: 47.0 | K127: 1200 | L127: 6060
A128: YXKK5005-8 | B128: 710 | C128: 87.7 | D128: 743 | E128: 95.0 | F128: 0.82 | G128: 1.8 | H128: 0.8 | I128: 5.5 | J128: 51.0 | K128: 1280 | L128: 6320
A129: YXKK560S2-8 | B129: 630 | C129: 77.8 | D129: 745 | E129: 95.0 | F129: 0.82 | G129: 1.8 | H129: 0.7 | I129: 6.0 | J129: 79.0 | K129: 1221 | L129: 7720
A130: YXKK560S1-8 | B130: 710 | C130: 87.7 | D130: 745 | E130: 95.0 | F130: 0.82 | G130: 1.8 | H130: 0.7 | I130: 6.0 | J130: 87.0 | K130: 1357 | L130: 7970
A131: YXKK5601-8 | B131: 800 | C131: 98.6 | D131: 745 | E131: 95.2 | F131: 0.82 | G131: 1.8 | H131: 0.7 | I131: 6.0 | J131: 90.0 | K131: 1505 | L131: 8220
A132: YXKK5602-8 | B132: 900 | C132: =B132*100/1.732/E132/F132/6 -> 108 | D132: 745 | E132: 95.3 | F132: 0.84 | G132: 1.8 | H132: 0.7 | I132: 6.0 | J132: 93.0 | K132: 1590 | L132: 8470
A133: YXKK5603-8 | B133: 1000 | C133: 120 | D133: 745 | E133: 95.4 | F133: 0.84 | G133: 1.8 | H133: 0.7 | I133: 6.0 | J133: 96.0 | K133: 1680 | L133: 8720
A134: YXKK6302-8 | B134: 900 | C134: 108 | D134: 745 | E134: 95.3 | F134: 0.84 | G134: 1.8 | H134: 0.7 | I134: 6.0 | J134: 129.0 | K134: 1650 | L134: 10750
A135: YXKK6303-8 | B135: 1000 | C135: 120 | D135: 745 | E135: 95.4 | F135: 0.84 | G135: 1.8 | H135: 0.7 | I135: 6.0 | J135: 137.0 | K135: 1820 | L135: 11150
A136: YXKK6304-8 | B136: 1120 | C136: 134 | D136: 745 | E136: 95.5 | F136: 0.84 | G136: 1.8 | H136: 0.7 | I136: 6.0 | J136: 151.0 | K136: 2001 | L136: 11550
A137: YXKK6305-8 | B137: 1250 | C137: 150 | D137: 745 | E137: 95.6 | F137: 0.84 | G137: 1.8 | H137: 0.7 | I137: 6.0 | J137: 160.0 | K137: 2204 | L137: 11950
A138: YXKK6306-8 | B138: 1400 | C138: 168 | D138: 745 | E138: 95.7 | F138: 0.84 | G138: 1.8 | H138: 0.7 | I138: 6.0 | J138: 171.0 | K138: 2300 | L138: 12350
A139: YXKK6307-8 | B139: 1600 | C139: 191 | D139: 745 | E139: 95.8 | F139: 0.84 | G139: 1.8 | H139: 0.7 | I139: 6.0 | J139: 180.0 | K139: 2402 | L139: 12750
A140: YXKK6308-8 | B140: 1800 | C140: 215 | D140: 745 | E140: 95.8 | F140: 0.84 | G140: 1.8 | H140: 0.7 | I140: 6.0 | J140: 188.0 | K140: 2500 | L140: 13150
A141: YXKK4004-10 | B141: 185 | C141: 25.7 | D141: 593 | E141: 92.4 | F141: 0.75 | G141: 1.8 | H141: 0.8 | I141: 5.5 | J141: 14.0 | K141: 600 | L141: 2980
A142: YXKK4005-10 | B142: 200 | C142: 27.7 | D142: 593 | E142: 92.6 | F142: 0.75 | G142: 1.8 | H142: 0.8 | I142: 5.5 | J142: 15.5 | K142: 645 | L142: 3130
A143: YXKK450S2-10 | B143: 185 | C143: 25.7 | D143: 593 | E143: 92.4 | F143: 0.75 | G143: 1.8 | H143: 0.8 | I143: 5.5 | J143: 19.0 | K143: 698 | L143: 4660
A144: YXKK450S1-10 | B144: 200 | C144: 27.7 | D144: 593 | E144: 92.6 | F144: 0.75 | G144: 1.8 | H144: 0.8 | I144: 5.5 | J144: 20.0 | K144: 775 | L144: 4750
A145: YXKK4501-10 | B145: 220 | C145: 30.4 | D145: 593 | E145: 92.7 | F145: 0.75 | G145: 1.8 | H145: 0.8 | I145: 5.5 | J145: 22.0 | K145: 865 | L145: 4840
A146: YXKK4502-10 | B146: 250 | C146: 34.5 | D146: 593 | E146: 92.9 | F146: 0.75 | G146: 1.8 | H146: 0.8 | I146: 5.5 | J146: 24.0 | K146: 902 | L146: 4940
A147: YXKK4503-10 | B147: 280 | C147: 38.6 | D147: 593 | E147: 93.1 | F147: 0.75 | G147: 1.8 | H147: 0.8 | I147: 5.5 | J147: 26.0 | K147: 1052 | L147: 5040
A148: YXKK4504-10 | B148: 315 | C148: 42.7 | D148: 593 | E148: 93.4 | F148: 0.76 | G148: 1.8 | H148: 0.8 | I148: 5.5 | J148: 28.0 | K148: 1100 | L148: 5130
A149: YXKK4505-10 | B149: 355 | C149: 48.0 | D149: 593 | E149: 93.6 | F149: 0.76 | G149: 1.8 | H149: 0.8 | I149: 5.5 | J149: 30.0 | K149: 1160 | L149: 5240
A150: YXKK500S2-10 | B150: 315 | C150: 42.7 | D150: 594 | E150: 93.4 | F150: 0.76 | G150: 1.8 | H150: 0.8 | I150: 5.5 | J150: 36.0 | K150: 1196 | L150: 5360
A151: YXKK500S1-10 | B151: 355 | C151: 48.0 | D151: 594 | E151: 93.6 | F151: 0.76 | G151: 1.8 | H151: 0.8 | I151: 5.5 | J151: 38.0 | K151: 1330 | L151: 5515
A152: YXKK5001-10 | B152: 400 | C152: 54.0 | D152: 594 | E152: 93.8 | F152: 0.76 | G152: 1.8 | H152: 0.8 | I152: 5.5 | J152: 42.0 | K152: 1471 | L152: 5675
A153: YXKK5002-10 | B153: 450 | C153: 60.7 | D153: 594 | E153: 93.9 | F153: 0.76 | G153: 1.8 | H153: 0.8 | I153: 5.5 | J153: 45.0 | K153: 1627 | L153: 5900
A154: YXKK5003-10 | B154: 500 | C154: 65.5 | D154: 594 | E154: 94.2 | F154: 0.78 | G154: 1.8 | H154: 0.8 | I154: 5.5 | J154: 48.0 | K154: 1720 | L154: 6120
A155: YXKK5004-10 | B155: 560 | C155: 73.3 | D155: 594 | E155: 94.3 | F155: 0.78 | G155: 1.8 | H155: 0.8 | I155: 5.5 | J155: 51.0 | K155: 1830 | L155: 6345
A156: YXKK5005-10 | B156: 630 | C156: 82.3 | D156: 594 | E156: 94.4 | F156: 0.78 | G156: 1.8 | H156: 0.8 | I156: 5.5 | J156: 54.0 | K156: 1950 | L156: 6590
A157: YXKK560S3-10 | B157: 500 | C157: 65.5 | D157: 595 | E157: 94.2 | F157: 0.78 | G157: 1.8 | H157: 0.7 | I157: 6.0 | J157: 67.0 | K157: 1710 | L157: 7670
A158: YXKK560S2-10 | B158: 560 | C158: 73.3 | D158: 595 | E158: 94.3 | F158: 0.78 | G158: 1.8 | H158: 0.7 | I158: 6.0 | J158: 74.0 | K158: 1902 | L158: 7890
A159: YXKK560S1-10 | B159: 630 | C159: 82.3 | D159: 595 | E159: 94.4 | F159: 0.78 | G159: 1.8 | H159: 0.7 | I159: 6.0 | J159: 79.0 | K159: 2116 | L159: 8120
A160: YXKK5601-10 | B160: 710 | C160: 92.7 | D160: 595 | E160: 94.5 | F160: 0.78 | G160: 1.8 | H160: 0.7 | I160: 6.0 | J160: 88.0 | K160: 2355 | L160: 8340
A161: YXKK5602-10 | B161: 800 | C161: 102 | D161: 595 | E161: 94.8 | F161: 0.80 | G161: 1.8 | H161: 0.7 | I161: 6.0 | J161: 89.0 | K161: 2480 | L161: 8560
A162: YXKK5603-10 | B162: 900 | C162: 114 | D162: 595 | E162: 94.9 | F162: 0.80 | G162: 1.8 | H162: 0.7 | I162: 6.0 | J162: 90.0 | K162: 2620 | L162: 8780
A163: YXKK6302-10 | B163: 800 | C163: 102 | D163: 594 | E163: 94.8 | F163: 0.80 | G163: 1.8 | H163: 0.7 | I163: 6.0 | J163: 132 | K163: 2615 | L163: 10950
A164: YXKK6303-10 | B164: 900 | C164: =B164*100/1.732/E164/F164/6 -> 114 | D164: 594 | E164: 94.9 | F164: 0.80 | G164: 1.8 | H164: 0.7 | I164: 6.0 | J164: 140 | K164: 2800 | L164: 11350
A165: YXKK6304-10 | B165: 1000 | C165: 127 | D165: 594 | E165: 95.0 | F165: 0.80 | G165: 1.8 | H165: 0.7 | I165: 6.0 | J165: 152 | K165: 3170 | L165: 11750
A166: YXKK6305-10 | B166: 1120 | C166: 142 | D166: 594 | E166: 95.1 | F166: 0.80 | G166: 1.8 | H166: 0.7 | I166: 6.0 | J166: 167 | K166: 3489 | L166: 12150
A167: YXKK6306-10 | B167: 1250 | C167: 158 | D167: 594 | E167: 95.4 | F167: 0.80 | G167: 1.8 | H167: 0.7 | I167: 6.0 | J167: 175 | K167: 3800 | L167: 12550
A168: YXKK6307-10 | B168: 1400 | C168: 176 | D168: 594 | E168: 95.5 | F168: 0.80 | G168: 1.8 | H168: 0.7 | I168: 6.0 | J168: 188.0 | K168: 4120 | L168: 12950
A169: YXKK6308-10 | B169: 1600 | C169: 202 | D169: 594 | E169: 95.5 | F169: 0.80 | G169: 1.8 | H169: 0.7 | I169: 6.0 | J169: 199.0 | K169: 4450 | L169: 13400
A170: YXKK4502-12 | B170: 185 | C170: 27.5 | D170: 494 | E170: 92.5 | F170: 0.70 | G170: 1.8 | H170: 0.8 | I170: 5.5 | J170: 24.0 | K170: 1487 | L170: 4800
A171: YXKK4503-12 | B171: 200 | C171: 29.7 | D171: 494 | E171: 92.6 | F171: 0.70 | G171: 1.8 | H171: 0.8 | I171: 5.5 | J171: 26.0 | K171: 1206 | L171: 4880
A172: YXKK4504-12 | B172: 220 | C172: 31.7 | D172: 494 | E172: 92.8 | F172: 0.72 | G172: 1.8 | H172: 0.8 | I172: 5.5 | J172: 28.0 | K172: 1320 | L172: 4980
A173: YXKK4505-12 | B173: 250 | C173: 35.9 | D173: 494 | E173: 93.1 | F173: 0.72 | G173: 1.8 | H173: 0.8 | I173: 5.5 | J173: 30.0 | K173: 1440 | L173: 5080
A174: YXKK500S2-12 | B174: 220 | C174: 31.7 | D174: 494 | E174: 92.8 | F174: 0.72 | G174: 1.8 | H174: 0.8 | I174: 5.5 | J174: 40.0 | K174: 1347 | L174: 5350
A175: YXKK500S1-12 | B175: 250 | C175: 35.9 | D175: 494 | E175: 93.1 | F175: 0.72 | G175: 1.8 | H175: 0.8 | I175: 5.5 | J175: 42.0 | K175: 1499 | L175: 5440
A176: YXKK5001-12 | B176: 280 | C176: 40.1 | D176: 494 | E176: 93.3 | F176: 0.72 | G176: 1.8 | H176: 0.8 | I176: 5.5 | J176: 43.0 | K176: 1672 | L176: 5510
A177: YXKK5002-12 | B177: 315 | C177: 45.1 | D177: 494 | E177: 93.4 | F177: 0.72 | G177: 1.8 | H177: 0.8 | I177: 5.5 | J177: 47.0 | K177: 1865 | L177: 5700
A178: YXKK5003-12 | B178: 355 | C178: 49.3 | D178: 494 | E178: 93.6 | F178: 0.74 | G178: 1.8 | H178: 0.8 | I178: 5.5 | J178: 49.0 | K178: 1920 | L178: 5880
A179: YXKK5004-12 | B179: 400 | C179: 55.5 | D179: 494 | E179: 93.8 | F179: 0.74 | G179: 1.8 | H179: 0.8 | I179: 5.5 | J179: 52.0 | K179: 2000 | L179: 6020
A180: YXKK5005-12 | B180: 450 | C180: 62.3 | D180: 494 | E180: 93.9 | F180: 0.74 | G180: 1.8 | H180: 0.8 | I180: 5.5 | J180: 55.0 | K180: 2120 | L180: 6180
A181: YXKK560S3-12 | B181: 355 | C181: 49.3 | D181: 496 | E181: 93.6 | F181: 0.74 | G181: 1.8 | H181: 0.7 | I181: 6.0 | J181: 87.0 | K181: 1967 | L181: 7630
A182: YXKK560S2-12 | B182: 400 | C182: 55.5 | D182: 496 | E182: 93.8 | F182: 0.74 | G182: 1.8 | H182: 0.7 | I182: 6.0 | J182: 96.0 | K182: 2190 | L182: 7840
A183: YXKK560S1-12 | B183: 450 | C183: 62.3 | D183: 496 | E183: 93.9 | F183: 0.74 | G183: 1.8 | H183: 0.7 | I183: 6.0 | J183: 103 | K183: 2411 | L183: 8050
A184: YXKK5601-12 | B184: 500 | C184: 69.0 | D184: 496 | E184: 94.2 | F184: 0.74 | G184: 1.8 | H184: 0.7 | I184: 6.0 | J184: 114 | K184: 2673 | L184: 8260
A185: YXKK5602-12 | B185: 560 | C185: 75.2 | D185: 496 | E185: 94.3 | F185: 0.76 | G185: 1.8 | H185: 0.7 | I185: 6.0 | J185: 125 | K185: 2810 | L185: 8470
A186: YXKK5603-12 | B186: 630 | C186: 84.5 | D186: 496 | E186: 94.4 | F186: 0.76 | G186: 1.8 | H186: 0.7 | I186: 6.0 | J186: 128 | K186: 3050 | L186: 8680
A187: YXKK6302-12 | B187: 560 | C187: 75.2 | D187: 496 | E187: 94.3 | F187: 0.76 | G187: 1.8 | H187: 0.7 | I187: 6.0 | J187: 179 | K187: 2974 | L187: 10950
A188: YXKK6303-12 | B188: 630 | C188: 84.5 | D188: 496 | E188: 94.4 | F188: 0.76 | G188: 1.8 | H188: 0.7 | I188: 6.0 | J188: 191 | K188: 3312 | L188: 11350
A189: YXKK6304-12 | B189: 710 | C189: 95.1 | D189: 496 | E189: 94.5 | F189: 0.76 | G189: 1.8 | H189: 0.7 | I189: 6.0 | J189: 208 | K189: 3688 | L189: 11750
A190: YXKK6305-12 | B190: 800 | C190: 107 | D190: 496 | E190: 94.8 | F190: 0.76 | G190: 1.8 | H190: 0.7 | I190: 6.0 | J190: 272 | K190: 4098 | L190: 12150
A191: YXKK6306-12 | B191: 900 | C191: 120 | D191: 496 | E191: 94.9 | F191: 0.76 | G191: 1.8 | H191: 0.7 | I191: 6.0 | J191: 340 | K191: 4300 | L191: 12550
A192: YXKK6307-12 | B192: 1000 | C192: 133 | D192: 496 | E192: 95.0 | F192: 0.76 | G192: 1.8 | H192: 0.7 | I192: 6.0 | J192: 370 | K192: 4600 | L192: 12950
A193: YXKK6308-12 | B193: 1120 | C193: 149 | D193: 496 | E193: 95.0 | F193: 0.76 | G193: 1.8 | H193: 0.7 | I193: 6.0 | J193: 410 | K193: 4900 | L193: 13350
A195: 注：表中重量仅供参考

Sheet YX 6kV
A1: YX系列（6KV）高压三相异步电动机技术数据
A2: 型号 | B2: 额定功率（kW） | C2: 定子电流（A） | D2: 额定转速（r/min） | E2: 效率（%） | F2: 功率因数（cosψ） | G2: 最大转矩额定转矩 | H2: 堵转转矩额定转矩 | I2: 堵转电流额定电流 | J2: 电动机转动惯量 | L2: 概量（kg)
J3: 电机 Jm （kg·m2） | K3: 允许负载 J (kg·m2）
A4: YXX3551-2 | B4: 220 | C4: =B4/6/F4/E4/1.732*100 -> 26.4 | D4: 2967 | E4: 93.3 | F4: 0.86 | G4: 1.8 | H4: 0.6 | I4: 7.0 | J4: 2.2 | K4: 22 | L4: 1795
A5: YX3552-2 | B5: 250 | C5: 29.9 | D5: 2968 | E5: 93.4 | F5: 0.86 | G5: 1.8 | H5: 0.6 | I5: 7.0 | J5: 2.5 | K5: 24 | L5: 1845
A6: YX3553-2 | B6: 280 | C6: 33.5 | D6: 2970 | E6: 93.6 | F6: 0.86 | G6: 1.8 | H6: 0.6 | I6: 7.0 | J6: 2.7 | K6: 26 | L6: 1905
A7: YX3554-2 | B7: 315 | C7: 37.5 | D7: 2970 | E7: 93.9 | F7: 0.86 | G7: 1.8 | H7: 0.6 | I7: 7.0 | J7: 3 | K7: 27 | L7: 1940
A8: YX3555-2 | B8: 355 | C8: 42.2 | D8: 2973 | E8: 94.1 | F8: 0.86 | G8: 1.8 | H8: 0.6 | I8: 7.0 | J8: 3.4 | K8: 27.5 | L8: 2030
A9: YX3556-2 | B9: 400 | C9: 47.4 | D9: 2973 | E9: 94.5 | F9: 0.86 | G9: 1.8 | H9: 0.6 | I9: 7.0 | J9: 3.7 | K9: 28 | L9: 2095
A10: YX4001-2 | B10: 450 | C10: 53.2 | D10: 2975 | E10: 94.7 | F10: 0.86 | G10: 1.8 | H10: 0.6 | I10: 7.0 | J10: 4.8 | K10: 32 | L10: 2470
A11: YX4002-2 | B11: 500 | C11: 58.2 | D11: 2976 | E11: 95.0 | F11: 0.87 | G11: 1.8 | H11: 0.6 | I11: 7.0 | J11: 5.2 | K11: 33 | L11: 2540
A12: YX4003-2 | B12: 560 | C12: 65.1 | D12: 2977 | E12: 95.1 | F12: 0.87 | G12: 1.8 | H12: 0.6 | I12: 7.0 | J12: 6 | K12: 34 | L12: 2630
A13: YX4004-2 | B13: 630 | C13: 73.2 | D13: 2978 | E13: 95.2 | F13: 0.87 | G13: 1.8 | H13: 0.6 | I13: 7.0 | J13: 6.4 | K13: 35 | L13: 2680
A14: YX4005-2 | B14: 710 | C14: 82.4 | D14: 2978 | E14: 95.3 | F14: 0.87 | G14: 1.8 | H14: 0.6 | I14: 7.0 | J14: 6.8 | K14: 36 | L14: 2740
A15: YX450S1-2 | B15: 710 | C15: 82.4 | D15: 2977 | E15: 95.3 | F15: 0.87 | G15: 1.8 | H15: 0.6 | I15: 7.0 | J15: 8.4 | K15: 42 | L15: 3730
A16: YX4501-2 | B16: 800 | C16: 92.6 | D16: 2976 | E16: 95.6 | F16: 0.87 | G16: 1.8 | H16: 0.6 | I16: 7.0 | J16: 9.5 | K16: 44 | L16: 3890
A17: YX4502-2 | B17: 900 | C17: 104 | D17: 2974 | E17: 95.7 | F17: 0.87 | G17: 1.8 | H17: 0.6 | I17: 7.0 | J17: 10.5 | K17: 46 | L17: 4050
A18: YX4503-2 | B18: 1000 | C18: 114 | D18: 2977 | E18: 95.8 | F18: 0.88 | G18: 1.8 | H18: 0.6 | I18: 7.0 | J18: 11.6 | K18: 48 | L18: 4210
A19: YX4504-2 | B19: 1120 | C19: 128 | D19: 2978 | E19: 95.9 | F19: 0.88 | G19: 1.8 | H19: 0.6 | I19: 7.0 | J19: 12.8 | K19: 50 | L19: 4370
A20: YX5001-2 | B20: 1120 | C20: 128 | D20: 2978 | E20: 95.9 | F20: 0.88 | G20: 1.8 | H20: 0.6 | I20: 7.0 | J20: 15.9 | K20: 90 | L20: 4280
A21: YX5002-2 | B21: 1250 | C21: 142 | D21: 2979 | E21: 96.1 | F21: 0.88 | G21: 1.8 | H21: 0.6 | I21: 7.0 | J21: 17.7 | K21: 100 | L21: 4580
A22: YX5003-2 | B22: 1400 | C22: 159 | D22: 2979 | E22: 96.2 | F22: 0.88 | G22: 1.8 | H22: 0.6 | I22: 7.0 | J22: 19.9 | K22: 101 | L22: 4880
A23: YX5004-2 | B23: 1600 | C23: 182 | D23: 2978 | E23: 96.3 | F23: 0.88 | G23: 1.8 | H23: 0.6 | I23: 7.0 | J23: 22 | K23: 102 | L23: 5180
A24: YX5005-2 | B24: 1800 | C24: 204 | D24: 2979 | E24: 96.3 | F24: 0.88 | G24: 1.8 | H24: 0.6 | I24: 7.0 | J24: 24.2 | K24: 103 | L24: 5480
A25: YX560S1-2 | B25: 1800 | C25: 204 | D25: 2981 | E25: 96.3 | F25: 0.88 | G25: 1.8 | H25: 0.6 | I25: 7.0 | J25: 30.1 | K25: 106 | L25: 8200
A26: YX5601-2 | B26: 2000 | C26: 227 | D26: 2981 | E26: 96.5 | F26: 0.88 | G26: 1.8 | H26: 0.6 | I26: 7.0 | J26: 33.7 | K26: 107 | L26: 8400
A27: YX5602-2 | B27: 2100 | C27: 238 | D27: 2981 | E27: 96.5 | F27: 0.88 | G27: 1.8 | H27: 0.6 | I27: 7.0 | J27: 35.7 | K27: 107 | L27: 8530
A28: YX5603-2 | B28: 2240 | C28: 254 | D28: 2982 | E28: 96.6 | F28: 0.88 | G28: 1.8 | H28: 0.6 | I28: 7.0 | J28: 37.8 | K28: 108 | L28: 8700
A29: YX5604-2 | B29: 2350 | C29: 266 | D29: 2982 | E29: 96.6 | F29: 0.88 | G29: 1.8 | H29: 0.6 | I29: 7.0 | J29: 40 | K29: 109 | L29: 8900
A30: YX5605-2 | B30: 2500 | C30: 280 | D30: 2982 | E30: 96.6 | F30: 0.89 | G30: 1.8 | H30: 0.6 | I30: 7.0 | J30: 43 | K30: 110 | L30: 9100
A31: YX630S1-2 | B31: 2500 | C31: 280 | D31: 2982 | E31: 96.6 | F31: 0.89 | G31: 1.8 | H31: 0.6 | I31: 7.0 | J31: 46.4 | K31: 118 | L31: 9450
A32: YX6301-2 | B32: 2650 | C32: 296 | D32: 2982 | E32: 96.7 | F32: 0.89 | G32: 1.8 | H32: 0.6 | I32: 7.0 | J32: 48.5 | K32: 120 | L32: 9650
A33: YX6302-2 | B33: 2800 | C33: 313 | D33: 2982 | E33: 96.7 | F33: 0.89 | G33: 1.8 | H33: 0.6 | I33: 7.0 | J33: 50.7 | K33: 123 | L33: 9850
A34: YX6303-2 | B34: 2900 | C34: 324 | D34: 2982 | E34: 96.7 | F34: 0.89 | G34: 1.8 | H34: 0.6 | I34: 7.0 | J34: 53.5 | K34: 127 | L34: 10050
A35: YX6304-2 | B35: 3150 | C35: 352 | D35: 2983 | E35: 96.8 | F35: 0.89 | G35: 1.8 | H35: 0.6 | I35: 7.0 | J35: 56.1 | K35: 130 | L35: 10250
A36: YX6305-2 | B36: 3350 | C36: =B36/6/F36/E36/1.732*100 -> 374 | D36: 2983 | E36: 96.8 | F36: 0.89 | G36: 1.8 | H36: 0.6 | I36: 7.0 | J36: 59.1 | K36: 133 | L36: 10450
A37: YX6306-2 | B37: 3550 | C37: 397 | D37: 2983 | E37: 96.8 | F37: 0.89 | G37: 1.8 | H37: 0.6 | I37: 7.0 | J37: 62 | K37: 136 | L37: 10650
A38: YX3551-4 | B38: 220 | C38: 26.6 | D38: 1477 | E38: 93.7 | F38: 0.85 | G38: 1.8 | H38: 0.8 | I38: 6.5 | J38: 3 | K38: 78 | L38: 1980
A39: YX3552-4 | B39: 250 | C39: 30.2 | D39: 1478 | E39: 93.8 | F39: 0.85 | G39: 1.8 | H39: 0.8 | I39: 6.5 | J39: 3.5 | K39: 88 | L39: 2040
A40: YX3553-4 | B40: 280 | C40: 33.4 | D40: 1478 | E40: 93.9 | F40: 0.86 | G40: 1.8 | H40: 0.8 | I40: 6.5 | J40: 3.8 | K40: 97 | L40: 2100
A41: YX3554-4 | B41: 315 | C41: 37.5 | D41: 1478 | E41: 94.1 | F41: 0.86 | G41: 1.8 | H41: 0.8 | I41: 6.5 | J41: 4 | K41: 108 | L41: 2160
A42: YX3555-4 | B42: 355 | C42: 42.1 | D42: 1478 | E42: 94.3 | F42: 0.86 | G42: 1.8 | H42: 0.8 | I42: 6.5 | J42: 4.3 | K42: 117 | L42: 2220
A43: YX3556-4 | B43: 400 | C43: 47.4 | D43: 1478 | E43: 94.4 | F43: 0.86 | G43: 1.8 | H43: 0.8 | I43: 6.5 | J43: 4.5 | K43: 128 | L43: 2280
A44: YX400S2-4 | B44: 355 | C44: 42.1 | D44: 1485 | E44: 94.3 | F44: 0.86 | G44: 1.8 | H44: 0.8 | I44: 6.5 | J44: 5.8 | K44: 120 | L44: 2340
A45: YX400S1-4 | B45: 400 | C45: 47.4 | D45: 1485 | E45: 94.4 | F45: 0.86 | G45: 1.8 | H45: 0.8 | I45: 6.5 | J45: 6 | K45: 133 | L45: 2415
A46: YX4001-4 | B46: 450 | C46: 53.2 | D46: 1485 | E46: 94.6 | F46: 0.86 | G46: 1.8 | H46: 0.8 | I46: 6.5 | J46: 6.5 | K46: 147 | L46: 2465
A47: YX4002-4 | B47: 500 | C47: 58.3 | D47: 1485 | E47: 94.8 | F47: 0.87 | G47: 1.8 | H47: 0.8 | I47: 6.5 | J47: 7 | K47: 161 | L47: 2520
A48: YX4003-4 | B48: 560 | C48: 65.2 | D48: 1485 | E48: 95.0 | F48: 0.87 | G48: 1.8 | H48: 0.8 | I48: 6.5 | J48: 8 | K48: 178 | L48: 2580
A49: YX4004-4 | B49: 630 | C49: 73.2 | D49: 1485 | E49: 95.2 | F49: 0.87 | G49: 1.8 | H49: 0.8 | I49: 6.5 | J49: 9 | K49: 195 | L49: 2610
A50: YX4005-4 | B50: 710 | C50: 82.3 | D50: 1485 | E50: 95.4 | F50: 0.87 | G50: 1.8 | H50: 0.8 | I50: 6.5 | J50: 10 | K50: 212 | L50: 2650
A51: YX450S2-4 | B51: 630 | C51: 73.2 | D51: 1485 | E51: 95.2 | F51: 0.87 | G51: 1.8 | H51: 0.8 | I51: 6.5 | J51: 11 | K51: 197 | L51: 2700
A52: YX450S1-4 | B52: 710 | C52: 82.3 | D52: 1485 | E52: 95.4 | F52: 0.87 | G52: 1.8 | H52: 0.8 | I52: 6.5 | J52: 12 | K52: 218 | L52: 2860
A53: YX4501-4 | B53: 800 | C53: 92.7 | D53: 1486 | E53: 95.5 | F53: 0.87 | G53: 1.8 | H53: 0.8 | I53: 6.5 | J53: 13 | K53: 241 | L53: 3030
A54: YX4502-4 | B54: 900 | C54: 104 | D54: 1487 | E54: 95.6 | F54: 0.87 | G54: 1.8 | H54: 0.8 | I54: 6.5 | J54: 14 | K54: 266 | L54: 3150
A55: YX4503-4 | B55: 1000 | C55: 116 | D55: 1487 | E55: 95.7 | F55: 0.87 | G55: 1.8 | H55: 0.8 | I55: 6.5 | J55: 14 | K55: 282 | L55: 3270
A56: YX4504-4 | B56: 1120 | C56: 128 | D56: 1487 | E56: 95.8 | F56: 0.88 | G56: 1.8 | H56: 0.8 | I56: 6.5 | J56: 16 | K56: 295 | L56: 3500
A57: YX500S1-4 | B57: 1000 | C57: 116 | D57: 1485 | E57: 95.7 | F57: 0.87 | G57: 1.8 | H57: 0.7 | I57: 6.5 | J57: 24 | K57: 290 | L57: 4550
A58: YX5001-4 | B58: 1120 | C58: 128 | D58: 1485 | E58: 95.8 | F58: 0.88 | G58: 1.8 | H58: 0.7 | I58: 6.5 | J58: 26 | K58: 318 | L58: 4650
A59: YX5002-4 | B59: 1250 | C59: 142 | D59: 1485 | E59: 96.0 | F59: 0.88 | G59: 1.8 | H59: 0.7 | I59: 6.5 | J59: 30 | K59: 347 | L59: 4750
A60: YX5003-4 | B60: 1400 | C60: 159 | D60: 1485 | E60: 96.0 | F60: 0.88 | G60: 1.8 | H60: 0.7 | I60: 6.5 | J60: 32 | K60: 380 | L60: 4950
A61: YX5004-4 | B61: 1600 | C61: 180 | D61: 1485 | E61: 96.1 | F61: 0.89 | G61: 1.8 | H61: 0.7 | I61: 6.5 | J61: 34 | K61: 400 | L61: 5150
A62: YX5005-4 | B62: 1800 | C62: 202 | D62: 1485 | E62: 96.2 | F62: 0.89 | G62: 1.8 | H62: 0.7 | I62: 6.5 | J62: 36 | K62: 420 | L62: 5350
A63: YX560S2-4 | B63: 1600 | C63: 180 | D63: 1488 | E63: 96.1 | F63: 0.89 | G63: 1.8 | H63: 0.6 | I63: 6.5 | J63: 57 | K63: 420 | L63: 6525
A64: YX560S1-4 | B64: 1800 | C64: 202 | D64: 1488 | E64: 96.2 | F64: 0.89 | G64: 1.8 | H64: 0.6 | I64: 6.5 | J64: 60 | K64: 460 | L64: 7020
A65: YX5601-4 | B65: 2000 | C65: 224 | D65: 1488 | E65: 96.4 | F65: 0.89 | G65: 1.8 | H65: 0.6 | I65: 6.5 | J65: 66 | K65: 498 | L65: 7450
A66: YX5602-4 | B66: 2100 | C66: 236 | D66: 1488 | E66: 96.4 | F66: 0.89 | G66: 1.8 | H66: 0.6 | I66: 6.5 | J66: 70 | K66: 510 | L66: 7930
A67: YX5603-4 | B67: 2240 | C67: 251 | D67: 1488 | E67: 96.5 | F67: 0.89 | G67: 1.8 | H67: 0.6 | I67: 6.5 | J67: 75 | K67: 520 | L67: 8410
A68: YX5604-4 | B68: 2350 | C68: =B68/6/F68/E68/1.732*100 -> 263 | D68: 1488 | E68: 96.5 | F68: 0.89 | G68: 1.8 | H68: 0.6 | I68: 6.5 | J68: 80 | K68: 529 | L68: 8900
A69: YX5605-4 | B69: 2500 | C69: 280 | D69: 1488 | E69: 96.6 | F69: 0.89 | G69: 1.8 | H69: 0.6 | I69: 6.5 | J69: 86 | K69: 538 | L69: 9385
A70: YX630S2-4 | B70: 2240 | C70: 251 | D70: 1488 | E70: 96.5 | F70: 0.89 | G70: 1.8 | H70: 0.6 | I70: 6.5 | J70: 102 | K70: 540 | L70: 9650
A71: YX630S1-4 | B71: 2500 | C71: 280 | D71: 1488 | E71: 96.6 | F71: 0.89 | G71: 1.8 | H71: 0.6 | I71: 6.5 | J71: 112 | K71: 584 | L71: 10050
A72: YX6301-4 | B72: 2650 | C72: 297 | D72: 1488 | E72: 96.6 | F72: 0.89 | G72: 1.8 | H72: 0.6 | I72: 6.5 | J72: 114 | K72: 608 | L72: 10410
A73: YX6302-4 | B73: 2800 | C73: 313 | D73: 1488 | E73: 96.6 | F73: 0.89 | G73: 1.8 | H73: 0.6 | I73: 6.5 | J73: 116 | K73: 631 | L73: 10850
A74: YX6303-4 | B74: 2900 | C74: 324 | D74: 1488 | E74: 96.7 | F74: 0.89 | G74: 1.8 | H74: 0.6 | I74: 6.5 | J74: 118 | K74: 649 | L74: 11250
A75: YX6304-4 | B75: 3150 | C75: 352 | D75: 1488 | E75: 96.8 | F75: 0.89 | G75: 1.8 | H75: 0.6 | I75: 6.5 | J75: 120 | K75: 665 | L75: 11660
A76: YX6305-4 | B76: 3350 | C76: 374 | D76: 1488 | E76: 96.8 | F76: 0.89 | G76: 1.8 | H76: 0.6 | I76: 6.5 | J76: 122 | K76: 683 | L76: 12060
A77: YX6306-4 | B77: 3550 | C77: 397 | D77: 1488 | E77: 96.8 | F77: 0.89 | G77: 1.8 | H77: 0.6 | I77: 6.5 | J77: 124 | K77: 700 | L77: 12450
A78: YX3554-6 | B78: 220 | C78: 27.6 | D78: 987 | E78: 93.5 | F78: 0.82 | G78: 1.8 | H78: 0.8 | I78: 6.0 | J78: 6 | K78: 210 | L78: 2190
A79: YX3555-6 | B79: 250 | C79: 31.3 | D79: 987 | E79: 93.7 | F79: 0.82 | G79: 1.8 | H79: 0.8 | I79: 6.0 | J79: 7 | K79: 236 | L79: 2220
A80: YX3556-6 | B80: 280 | C80: 34.6 | D80: 987 | E80: 93.9 | F80: 0.83 | G80: 1.8 | H80: 0.8 | I80: 6.0 | J80: 8 | K80: 255 | L80: 2250
A81: YX400S1-6 | B81: 280 | C81: 34.6 | D81: 988 | E81: 93.9 | F81: 0.83 | G81: 1.8 | H81: 0.8 | I81: 6.0 | J81: 10 | K81: 262 | L81: 2370
A82: YX4001-6 | B82: 315 | C82: 38.8 | D82: 988 | E82: 94.2 | F82: 0.83 | G82: 1.8 | H82: 0.8 | I82: 6.0 | J82: 11 | K82: 291 | L82: 2470
A83: YX4002-6 | B83: 355 | C83: 43.6 | D83: 988 | E83: 94.4 | F83: 0.83 | G83: 1.8 | H83: 0.8 | I83: 6.0 | J83: 11.5 | K83: 324 | L83: 2600
A84: YX4003-6 | B84: 400 | C84: 49.1 | D84: 988 | E84: 94.4 | F84: 0.83 | G84: 1.8 | H84: 0.8 | I84: 6.0 | J84: 12 | K84: 361 | L84: 2730
A85: YX4004-6 | B85: 450 | C85: 54.4 | D85: 988 | E85: 94.7 | F85: 0.84 | G85: 1.8 | H85: 0.8 | I85: 6.0 | J85: 13 | K85: 385 | L85: 2870
A86: YX4005-6 | B86: 500 | C86: 59.6 | D86: 988 | E86: 95.0 | F86: 0.85 | G86: 1.8 | H86: 0.8 | I86: 6.0 | J86: 14 | K86: 400 | L86: 3020
A87: YX450S2-6 | B87: 450 | C87: 54.4 | D87: 988 | E87: 94.7 | F87: 0.84 | G87: 1.8 | H87: 0.8 | I87: 6.0 | J87: 15 | K87: 401 | L87: 3140
A88: YX450S1-6 | B88: 500 | C88: 59.6 | D88: 988 | E88: 95.0 | F88: 0.85 | G88: 1.8 | H88: 0.8 | I88: 6.0 | J88: 16 | K88: 440 | L88: 3250
A89: YX4501-6 | B89: 560 | C89: 66.7 | D89: 988 | E89: 95.1 | F89: 0.85 | G89: 1.8 | H89: 0.8 | I89: 6.0 | J89: 17 | K89: 487 | L89: 3370
A90: YX4502-6 | B90: 630 | C90: 74.9 | D90: 989 | E90: 95.2 | F90: 0.85 | G90: 1.8 | H90: 0.8 | I90: 6.0 | J90: 20 | K90: 540 | L90: 3500
A91: YX4503-6 | B91: 710 | C91: 84.3 | D91: 989 | E91: 95.4 | F91: 0.85 | G91: 1.8 | H91: 0.8 | I91: 6.0 | J91: 22 | K91: 580 | L91: 3610
A92: YX4504-6 | B92: 800 | C92: 94.8 | D92: 989 | E92: 95.5 | F92: 0.85 | G92: 1.8 | H92: 0.8 | I92: 6.0 | J92: 25 | K92: 620 | L92: 3730
A93: YX5001-6 | B93: 710 | C93: 84.3 | D93: 990 | E93: 95.4 | F93: 0.85 | G93: 1.8 | H93: 0.7 | I93: 6.0 | J93: 32 | K93: 599 | L93: 4250
A94: YX5002-6 | B94: 800 | C94: 94.8 | D94: 989 | E94: 95.5 | F94: 0.85 | G94: 1.8 | H94: 0.7 | I94: 6.0 | J94: 34 | K94: 665 | L94: 4480
A95: YX5002-6 | B95: 900 | C95: 107 | D95: 989 | E95: 95.6 | F95: 0.85 | G95: 1.8 | H95: 0.7 | I95: 6.0 | J95: 40 | K95: 736 | L95: 4680
A96: YX5003-6 | B96: 1000 | C96: 118 | D96: 989 | E96: 95.7 | F96: 0.85 | G96: 1.8 | H96: 0.7 | I96: 6.0 | J96: 47 | K96: 805 | L96: 4880
A97: YX5004-6 | B97: 1120 | C97: 131 | D97: 990 | E97: 95.8 | F97: 0.86 | G97: 1.8 | H97: 0.7 | I97: 6.0 | J97: 53 | K97: 870 | L97: 5100
A98: YX5005-6 | B98: 1250 | C98: 146 | D98: 990 | E98: 96.0 | F98: 0.86 | G98: 1.8 | H98: 0.7 | I98: 6.0 | J98: 60 | K98: 930 | L98: 5480
A99: YX5601-6 | B99: 1120 | C99: 131 | D99: 990 | E99: 95.8 | F99: 0.86 | G99: 1.8 | H99: 0.7 | I99: 6.5 | J99: 70 | K99: 886 | L99: 6415
A100: YX5602-6 | B100: 1250 | C100: =B100/6/F100/E100/1.732*100 -> 146 | D100: 990 | E100: 96.0 | F100: 0.86 | G100: 1.8 | H100: 0.7 | I100: 6.5 | J100: 75 | K100: 972 | L100: 6645
A101: YX5603-6 | B101: 1400 | C101: 163 | D101: 990 | E101: 96.0 | F101: 0.86 | G101: 1.8 | H101: 0.7 | I101: 6.5 | J101: 82 | K101: 1068 | L101: 6900
A102: YX5604-6 | B102: 1600 | C102: 186 | D102: 990 | E102: 96.1 | F102: 0.86 | G102: 1.8 | H102: 0.7 | I102: 6.5 | J102: 89 | K102: 1150 | L102: 7000
A103: YX5605-6 | B103: 1800 | C103: 209 | D103: 990 | E103: 96.2 | F103: 0.86 | G103: 1.8 | H103: 0.7 | I103: 6.5 | J103: 96 | K103: 1210 | L103: 7230
A104: YX630S1-6 | B104: 1600 | C104: 186 | D104: 991 | E104: 96.1 | F104: 0.86 | G104: 1.8 | H104: 0.7 | I104: 6.5 | J104: 117 | K104: 1192 | L104: 9700
A105: YX6301-6 | B105: 1800 | C105: 209 | D105: 991 | E105: 96.2 | F105: 0.86 | G105: 1.8 | H105: 0.7 | I105: 6.5 | J105: 132 | K105: 1312 | L105: 10350
A106: YX6302-6 | B106: 2000 | C106: 232 | D106: 991 | E106: 96.4 | F106: 0.86 | G106: 1.8 | H106: 0.7 | I106: 6.5 | J106: 143 | K106: 1428 | L106: 10900
A107: YX6303-6 | B107: 2100 | C107: 244 | D107: 991 | E107: 96.4 | F107: 0.86 | G107: 1.8 | H107: 0.7 | I107: 6.5 | J107: 154 | K107: 1544 | L107: 11300
A108: YX6304-6 | B108: 2240 | C108: 260 | D108: 991 | E108: 96.4 | F108: 0.86 | G108: 1.8 | H108: 0.7 | I108: 6.5 | J108: 165 | K108: 1660 | L108: 11600
A109: YX6305-6 | B109: 2350 | C109: 273 | D109: 991 | E109: 96.4 | F109: 0.86 | G109: 1.8 | H109: 0.7 | I109: 6.5 | J109: 177 | K109: 1776 | L109: 11850
A110: YX6306-6 | B110: 2500 | C110: 290 | D110: 991 | E110: 96.5 | F110: 0.86 | G110: 1.8 | H110: 0.7 | I110: 6.5 | J110: 185 | K110: 1892 | L110: 12150
A111: YX4001-8 | B111: 220 | C111: 29.1 | D111: 741 | E111: 93.4 | F111: 0.78 | G111: 1.8 | H111: 0.8 | I111: 5.5 | J111: 11 | K111: 424 | L111: 2720
A112: YX4002-8 | B112: 250 | C112: 32.6 | D112: 741 | E112: 93.5 | F112: 0.79 | G112: 1.8 | H112: 0.8 | I112: 5.5 | J112: 12 | K112: 477 | L112: 2830
A113: YX4003-8 | B113: 280 | C113: 36.4 | D113: 741 | E113: 93.7 | F113: 0.79 | G113: 1.8 | H113: 0.8 | I113: 5.5 | J113: 13 | K113: 529 | L113: 2960
A114: YX4004-8 | B114: 315 | C114: 40.4 | D114: 741 | E114: 93.9 | F114: 0.80 | G114: 1.8 | H114: 0.8 | I114: 5.5 | J114: 14 | K114: 560 | L114: 3070
A115: YX4005-8 | B115: 355 | C115: 45.4 | D115: 741 | E115: 94.0 | F115: 0.80 | G115: 1.8 | H115: 0.8 | I115: 5.5 | J115: 15 | K115: 590 | L115: 3190
A116: YX450S2-8 | B116: 315 | C116: 40.4 | D116: 742 | E116: 93.9 | F116: 0.80 | G116: 1.8 | H116: 0.8 | I116: 5.5 | J116: 16 | K116: 588 | L116: 3290
A117: YX450S1-8 | B117: 355 | C117: 45.4 | D117: 742 | E117: 94.0 | F117: 0.80 | G117: 1.8 | H117: 0.8 | I117: 5.5 | J117: 17 | K117: 656 | L117: 3440
A118: YX4501-8 | B118: 400 | C118: 51.1 | D118: 742 | E118: 94.2 | F118: 0.80 | G118: 1.8 | H118: 0.8 | I118: 5.5 | J118: 18 | K118: 731 | L118: 3490
A119: YX4502-8 | B119: 450 | C119: 56.7 | D119: 742 | E119: 94.3 | F119: 0.81 | G119: 1.8 | H119: 0.8 | I119: 5.5 | J119: 19 | K119: 813 | L119: 3620
A120: YX4503-8 | B120: 500 | C120: 62.7 | D120: 742 | E120: 94.8 | F120: 0.81 | G120: 1.8 | H120: 0.8 | I120: 5.5 | J120: 20 | K120: 850 | L120: 3740
A121: YX4504-8 | B121: 560 | C121: 69.2 | D121: 742 | E121: 94.9 | F121: 0.82 | G121: 1.8 | H121: 0.8 | I121: 5.5 | J121: 21 | K121: 920 | L121: 3870
A122: YX500S1-8 | B122: 500 | C122: 62.7 | D122: 742 | E122: 94.8 | F122: 0.81 | G122: 1.8 | H122: 0.8 | I122: 5.5 | J122: 30 | K122: 894 | L122: 4150
A123: YX5001-8 | B123: 560 | C123: 69.2 | D123: 742 | E123: 94.9 | F123: 0.82 | G123: 1.8 | H123: 0.8 | I123: 5.5 | J123: 34 | K123: 988 | L123: 4300
A124: YX5002-8 | B124: 630 | C124: 77.8 | D124: 743 | E124: 95.0 | F124: 0.82 | G124: 1.8 | H124: 0.8 | I124: 5.5 | J124: 38 | K124: 1098 | L124: 4500
A125: YX5003-8 | B125: 710 | C125: 87.7 | D125: 744 | E125: 95.0 | F125: 0.82 | G125: 1.8 | H125: 0.8 | I125: 5.5 | J125: 42 | K125: 1222 | L125: 4650
A126: YX5004-8 | B126: 800 | C126: 96.3 | D126: 744 | E126: 95.2 | F126: 0.84 | G126: 1.8 | H126: 0.8 | I126: 5.5 | J126: 46 | K126: 1245 | L126: 4800
A127: YX5005-8 | B127: 900 | C127: 108 | D127: 744 | E127: 95.3 | F127: 0.84 | G127: 1.8 | H127: 0.8 | I127: 5.5 | J127: 50 | K127: 1270 | L127: 4950
A128: YX5601-8 | B128: 800 | C128: 96.3 | D128: 743 | E128: 95.2 | F128: 0.84 | G128: 1.8 | H128: 0.7 | I128: 6.0 | J128: 87 | K128: 1357 | L128: 6330
A129: YX5602-8 | B129: 900 | C129: 108 | D129: 743 | E129: 95.3 | F129: 0.84 | G129: 1.8 | H129: 0.7 | I129: 6.0 | J129: 92 | K129: 1505 | L129: 6475
A130: YX5603-8 | B130: 1000 | C130: 120 | D130: 743 | E130: 95.4 | F130: 0.84 | G130: 1.8 | H130: 0.7 | I130: 6.0 | J130: 102 | K130: 1650 | L130: 6623
A131: YX5604-8 | B131: 1120 | C131: 134 | D131: 743 | E131: 95.5 | F131: 0.84 | G131: 1.8 | H131: 0.7 | I131: 6.0 | J131: 112 | K131: 1720 | L131: 6770
A132: YX5605-8 | B132: 1250 | C132: =B132/6/F132/E132/1.732*100 -> 150 | D132: 743 | E132: 95.6 | F132: 0.84 | G132: 1.8 | H132: 0.7 | I132: 6.0 | J132: 122 | K132: 1810 | L132: 6920
A133: YX6301-8 | B133: 1120 | C133: 134 | D133: 744 | E133: 95.5 | F133: 0.84 | G133: 1.8 | H133: 0.7 | I133: 6.0 | J133: 137 | K133: 1820 | L133: 10020
A134: YX6302-8 | B134: 1250 | C134: 150 | D134: 744 | E134: 95.6 | F134: 0.84 | G134: 1.8 | H134: 0.7 | I134: 6.0 | J134: 151 | K134: 2001 | L134: 10550
A135: YX6303-8 | B135: 1400 | C135: 168 | D135: 744 | E135: 95.7 | F135: 0.84 | G135: 1.8 | H135: 0.7 | I135: 6.0 | J135: 160 | K135: 2204 | L135: 10920
A136: YX6304-8 | B136: 1600 | C136: 191 | D136: 744 | E136: 95.8 | F136: 0.84 | G136: 1.8 | H136: 0.7 | I136: 6.0 | J136: 168 | K136: 2468 | L136: 11270
A137: YX6305-8 | B137: 1800 | C137: 215 | D137: 744 | E137: 95.8 | F137: 0.84 | G137: 1.8 | H137: 0.7 | I137: 6.0 | J137: 176 | K137: 2700 | L137: 11620
A138: YX6306-8 | B138: 2000 | C138: 239 | D138: 744 | E138: 96.0 | F138: 0.84 | G138: 1.8 | H138: 0.7 | I138: 6.0 | J138: 182 | K138: 2940 | L138: 11970
A139: YX4003-10 | B139: 220 | C139: 29.6 | D139: 593 | E139: 92.8 | F139: 0.77 | G139: 1.8 | H139: 0.8 | I139: 5.5 | J139: 13 | K139: 573 | L139: 2990
A140: YX4004-10 | B140: 250 | C140: 33.2 | D140: 593 | E140: 92.9 | F140: 0.78 | G140: 1.8 | H140: 0.8 | I140: 5.5 | J140: 14 | K140: 595 | L140: 3070
A141: YX4005-10 | B141: 280 | C141: 37.1 | D141: 593 | E141: 93.1 | F141: 0.78 | G141: 1.8 | H141: 0.8 | I141: 5.5 | J141: 15 | K141: 617 | L141: 3150
A142: YX450S3-10 | B142: 220 | C142: 29.6 | D142: 592 | E142: 92.8 | F142: 0.77 | G142: 1.8 | H142: 0.8 | I142: 5.5 | J142: 19 | K142: 729 | L142: 3210
A143: YX450S2-10 | B143: 250 | C143: 33.2 | D143: 592 | E143: 92.9 | F143: 0.78 | G143: 1.8 | H143: 0.8 | I143: 5.5 | J143: 20 | K143: 820 | L143: 3290
A144: YX450S1-10 | B144: 280 | C144: 37.1 | D144: 592 | E144: 93.1 | F144: 0.78 | G144: 1.8 | H144: 0.8 | I144: 5.5 | J144: 22 | K144: 910 | L144: 3420
A145: YX4501-10 | B145: 315 | C145: 41.1 | D145: 592 | E145: 93.3 | F145: 0.79 | G145: 1.8 | H145: 0.8 | I145: 5.5 | J145: 24 | K145: 1014 | L145: 3480
A146: YX4502-10 | B146: 355 | C146: 46.2 | D146: 592 | E146: 93.5 | F146: 0.79 | G146: 1.8 | H146: 0.8 | I146: 5.5 | J146: 25 | K146: 1131 | L146: 3600
A147: YX4503-10 | B147: 400 | C147: 51.2 | D147: 592 | E147: 93.9 | F147: 0.80 | G147: 1.8 | H147: 0.8 | I147: 5.5 | J147: 26 | K147: 1200 | L147: 3720
A148: YX4504-10 | B148: 450 | C148: 57.6 | D148: 592 | E148: 93.9 | F148: 0.80 | G148: 1.8 | H148: 0.8 | I148: 5.5 | J148: 27 | K148: 1280 | L148: 3840
A149: YX500S2-10 | B149: 400 | C149: 51.2 | D149: 592 | E149: 93.9 | F149: 0.80 | G149: 1.8 | H149: 0.8 | I149: 5.5 | J149: 36 | K149: 1261 | L149: 4150
A150: YX500S1-10 | B150: 450 | C150: 57.6 | D150: 593 | E150: 93.9 | F150: 0.80 | G150: 1.8 | H150: 0.8 | I150: 5.5 | J150: 38 | K150: 1404 | L150: 4300
A151: YX5001-10 | B151: 500 | C151: 63.8 | D151: 594 | E151: 94.2 | F151: 0.80 | G151: 1.8 | H151: 0.8 | I151: 5.5 | J151: 42 | K151: 1544 | L151: 4450
A152: YX5002-10 | B152: 560 | C152: 71.4 | D152: 594 | E152: 94.3 | F152: 0.80 | G152: 1.8 | H152: 0.8 | I152: 5.5 | J152: 45 | K152: 1711 | L152: 4600
A153: YX5003-10 | B153: 630 | C153: 80.3 | D153: 595 | E153: 94.4 | F153: 0.80 | G153: 1.8 | H153: 0.8 | I153: 5.5 | J153: 52 | K153: 1902 | L153: 4800
A154: YX5004-10 | B154: 710 | C154: 88.2 | D154: 593 | E154: 94.5 | F154: 0.82 | G154: 1.8 | H154: 0.8 | I154: 5.5 | J154: 55 | K154: 2030 | L154: 5000
A155: YX5005-10 | B155: 800 | C155: 99.0 | D155: 593 | E155: 94.8 | F155: 0.82 | G155: 1.8 | H155: 0.8 | I155: 5.5 | J155: 59 | K155: 2110 | L155: 5200
A156: YX5601-10 | B156: 710 | C156: 88.2 | D156: 593 | E156: 94.5 | F156: 0.82 | G156: 1.8 | H156: 0.7 | I156: 6.0 | J156: 79 | K156: 2116 | L156: 6360
A157: YX5602-10 | B157: 800 | C157: 99.0 | D157: 593 | E157: 94.8 | F157: 0.82 | G157: 1.8 | H157: 0.7 | I157: 6.0 | J157: 88 | K157: 2355 | L157: 6560
A158: YX5603-10 | B158: 900 | C158: 111 | D158: 593 | E158: 94.9 | F158: 0.82 | G158: 1.8 | H158: 0.7 | I158: 6.0 | J158: 93 | K158: 2615 | L158: 6770
A159: YX5604-10 | B159: 1000 | C159: 124 | D159: 593 | E159: 95.0 | F159: 0.82 | G159: 1.8 | H159: 0.7 | I159: 6.0 | J159: 98 | K159: 2800 | L159: 6970
A160: YX5605-10 | B160: 1120 | C160: 138 | D160: 593 | E160: 95.1 | F160: 0.82 | G160: 1.8 | H160: 0.7 | I160: 6.0 | J160: 103 | K160: 2850 | L160: 7180
A161: YX6301-10 | B161: 1000 | C161: 124 | D161: 594 | E161: 95.0 | F161: 0.82 | G161: 1.8 | H161: 0.7 | I161: 6.0 | J161: 140 | K161: 2870 | L161: 9920
A162: YX6302-10 | B162: 1120 | C162: 138 | D162: 594 | E162: 95.1 | F162: 0.82 | G162: 1.8 | H162: 0.7 | I162: 6.0 | J162: 152 | K162: 3170 | L162: 10550
A163: YX6303-10 | B163: 1250 | C163: 154 | D163: 594 | E163: 95.4 | F163: 0.82 | G163: 1.8 | H163: 0.7 | I163: 6.0 | J163: 167 | K163: 3489 | L163: 10920
A164: YX6304-10 | B164: 1400 | C164: =B164/6/F164/E164/1.732*100 -> 172 | D164: 594 | E164: 95.5 | F164: 0.82 | G164: 1.8 | H164: 0.7 | I164: 6.0 | J164: 175 | K164: 3850 | L164: 11280
A165: YX6305-10 | B165: 1600 | C165: 197 | D165: 594 | E165: 95.5 | F165: 0.82 | G165: 1.8 | H165: 0.7 | I165: 6.0 | J165: 183 | K165: 4211 | L165: 11550
A166: YX6306-10 | B166: 1800 | C166: 221 | D166: 594 | E166: 95.6 | F166: 0.82 | G166: 1.8 | H166: 0.7 | I166: 6.0 | J166: 191 | K166: 4572 | L166: 11900
A167: YX4501-12 | B167: 220 | C167: 31.5 | D167: 494 | E167: 92.2 | F167: 0.73 | G167: 1.8 | H167: 0.8 | I167: 5.5 | J167: 24 | K167: 1135 | L167: 3490
A168: YX4502-12 | B168: 250 | C168: 35.7 | D168: 494 | E168: 92.4 | F168: 0.73 | G168: 1.8 | H168: 0.8 | I168: 5.5 | J168: 26 | K168: 1277 | L168: 3560
A169: YX4503-12 | B169: 280 | C169: 39.0 | D169: 494 | E169: 93.3 | F169: 0.74 | G169: 1.8 | H169: 0.8 | I169: 5.5 | J169: 28 | K169: 1400 | L169: 3630
A170: YX4504-12 | B170: 315 | C170: 43.2 | D170: 494 | E170: 93.5 | F170: 0.75 | G170: 1.8 | H170: 0.8 | I170: 5.5 | J170: 30 | K170: 1550 | L170: 3700
A171: YX500S2-12 | B171: 280 | C171: 39.0 | D171: 493 | E171: 93.3 | F171: 0.74 | G171: 1.8 | H171: 0.8 | I171: 5.5 | J171: 40 | K171: 1418 | L171: 4150
A172: YX500S1-12 | B172: 315 | C172: 43.2 | D172: 493 | E172: 93.5 | F172: 0.75 | G172: 1.8 | H172: 0.8 | I172: 5.5 | J172: 42 | K172: 1580 | L172: 4250
A173: YX5001-12 | B173: 355 | C173: 48.7 | D173: 494 | E173: 93.6 | F173: 0.75 | G173: 1.8 | H173: 0.8 | I173: 5.5 | J173: 43 | K173: 1764 | L173: 4400
A174: YX5002-12 | B174: 400 | C174: 54.7 | D174: 494 | E174: 93.9 | F174: 0.75 | G174: 1.8 | H174: 0.8 | I174: 5.5 | J174: 47 | K174: 1967 | L174: 4550
A175: YX5003-12 | B175: 450 | C175: 61.5 | D175: 495 | E175: 93.9 | F175: 0.75 | G175: 1.8 | H175: 0.8 | I175: 5.5 | J175: 50 | K175: 2191 | L175: 4700
A176: YX5004-12 | B176: 500 | C176: 64.6 | D176: 495 | E176: 94.3 | F176: 0.79 | G176: 1.8 | H176: 0.8 | I176: 5.5 | J176: 53 | K176: 2385 | L176: 4850
A177: YX5005-12 | B177: 560 | C177: 72.3 | D177: 495 | E177: 94.4 | F177: 0.79 | G177: 1.8 | H177: 0.8 | I177: 5.5 | J177: 56 | K177: 2550 | L177: 5000
A178: YX5601-12 | B178: 500 | C178: 64.6 | D178: 495 | E178: 94.3 | F178: 0.79 | G178: 1.8 | H178: 0.7 | I178: 6.0 | J178: 103 | K178: 2411 | L178: 6360
A179: YX5602-12 | B179: 560 | C179: 72.3 | D179: 495 | E179: 94.4 | F179: 0.79 | G179: 1.8 | H179: 0.7 | I179: 6.0 | J179: 114 | K179: 2673 | L179: 6560
A180: YX5603-12 | B180: 630 | C180: 81.2 | D180: 495 | E180: 94.5 | F180: 0.79 | G180: 1.8 | H180: 0.7 | I180: 6.0 | J180: 127 | K180: 2974 | L180: 6770
A181: YX5604-12 | B181: 710 | C181: 91.5 | D181: 495 | E181: 94.5 | F181: 0.79 | G181: 1.8 | H181: 0.7 | I181: 6.0 | J181: 139 | K181: 3250 | L181: 6980
A182: YX5605-12 | B182: 800 | C182: 103 | D182: 495 | E182: 94.8 | F182: 0.79 | G182: 1.8 | H182: 0.7 | I182: 6.0 | J182: 152 | K182: 3340 | L182: 7190
A183: YX6301-12 | B183: 710 | C183: 91.5 | D183: 495 | E183: 94.5 | F183: 0.79 | G183: 1.8 | H183: 0.7 | I183: 6.0 | J183: 191 | K183: 3312 | L183: 9950
A184: YX6302-12 | B184: 800 | C184: 103 | D184: 495 | E184: 94.8 | F184: 0.79 | G184: 1.8 | H184: 0.7 | I184: 6.0 | J184: 208 | K184: 3688 | L184: 10400
A185: YX6303-12 | B185: 900 | C185: 116 | D185: 495 | E185: 94.9 | F185: 0.79 | G185: 1.8 | H185: 0.7 | I185: 6.0 | J185: 227 | K185: 4098 | L185: 10800
A186: YX6304-12 | B186: 1000 | C186: 128 | D186: 495 | E186: 95.0 | F186: 0.79 | G186: 1.8 | H186: 0.7 | I186: 6.0 | J186: 239 | K186: 4502 | L186: 11170
A187: YX6305-12 | B187: 1120 | C187: 144 | D187: 495 | E187: 95.0 | F187: 0.79 | G187: 1.8 | H187: 0.7 | I187: 6.0 | J187: 251 | K187: 4906 | L187: 11540
A188: YX6306-12 | B188: 1250 | C188: 160 | D188: 495 | E188: 95.2 | F188: 0.79 | G188: 1.8 | H188: 0.7 | I188: 6.0 | J188: 263 | K188: 5300 | L188: 11830
A190: 注：表中重量仅供参考

Sheet YXKK 10KV
A1: YXKK系列（10KV）高压三相异步电动机技术数据
A2: 型号 | B2: 额定功率（kW） | C2: 定子电流（A） | D2: 额定转速（r/min） | E2: 效率（%） | F2: 功率因数（cosψ） | G2: 最大转矩额定转矩 | H2: 堵转转矩额定转矩 | I2: 堵转电流额定电流 | J2: 电动机转动惯量 | L2: 概量（kg)
J3: 电机 Jm （kg·m2） | K3: 允许负载 J (kg·m2）
A4: YXKK4001-2 | B4: 220 | C4: =B4*100/1.732/10/E4/F4 -> 16.1 | D4: 2972 | E4: 93.0 | F4: 0.85 | G4: 1.8 | H4: 0.6 | I4: 7.0 | J4: 4.5 | K4: 28.0 | L4: 2995
A5: YXKK4002-2 | B5: 250 | C5: =B5*100/1.732/10/E5/F5 -> 18.2 | D5: 2972 | E5: 93.2 | F5: 0.85 | G5: 1.8 | H5: 0.6 | I5: 7.0 | J5: 4.6 | K5: 28.2 | L5: 3045
A6: YXKK4003-2 | B6: 280 | C6: 20.3 | D6: 2972 | E6: 93.5 | F6: 0.85 | G6: 1.8 | H6: 0.6 | I6: 7.0 | J6: 4.7 | K6: 28.5 | L6: 3095
A7: YXKK4004-2 | B7: 315 | C7: 22.8 | D7: 2972 | E7: 93.7 | F7: 0.85 | G7: 1.8 | H7: 0.6 | I7: 7.0 | J7: 4.8 | K7: 28.6 | L7: 3145
A8: YXKK4005-2 | B8: 355 | C8: 25.4 | D8: 2972 | E8: 94.0 | F8: 0.86 | G8: 1.8 | H8: 0.6 | I8: 7.0 | J8: 4.9 | K8: 28.7 | L8: 3195
A9: YXKK4006-2 | B9: 400 | C9: 28.5 | D9: 2972 | E9: 94.2 | F9: 0.86 | G9: 1.8 | H9: 0.6 | I9: 7.0 | J9: 5.0 | K9: 28.9 | L9: 3245
A10: YXKK450S6-2 | B10: 220 | C10: 16.1 | D10: 2972 | E10: 93.0 | F10: 0.85 | G10: 1.8 | H10: 0.6 | I10: 7.0 | J10: 5.1 | K10: 30.0 | L10: 3050
A11: YXKK450S5-2 | B11: 250 | C11: 18.2 | D11: 2972 | E11: 93.2 | F11: 0.85 | G11: 1.8 | H11: 0.6 | I11: 7.0 | J11: 5.6 | K11: 31.3 | L11: 3185
A12: YXKK450S4-2 | B12: 280 | C12: 20.3 | D12: 2973 | E12: 93.5 | F12: 0.85 | G12: 1.8 | H12: 0.6 | I12: 7.0 | J12: 6.1 | K12: 31.8 | L12: 3335
A13: YXKK450S3-2 | B13: 315 | C13: 22.8 | D13: 2973 | E13: 93.7 | F13: 0.85 | G13: 1.8 | H13: 0.6 | I13: 7.0 | J13: 6.6 | K13: 32.5 | L13: 3425
A14: YXKK450S2-2 | B14: 355 | C14: 25.4 | D14: 2975 | E14: 94.0 | F14: 0.86 | G14: 1.8 | H14: 0.6 | I14: 7.0 | J14: 7.2 | K14: 34.3 | L14: 3525
A15: YXKK450S1-2 | B15: 400 | C15: 28.5 | D15: 2975 | E15: 94.2 | F15: 0.86 | G15: 1.8 | H15: 0.6 | I15: 7.0 | J15: 8.2 | K15: 35.2 | L15: 3605
A16: YXKK4501-2 | B16: 450 | C16: 32.0 | D16: 2976 | E16: 94.4 | F16: 0.86 | G16: 1.8 | H16: 0.6 | I16: 7.0 | J16: 8.7 | K16: 38.0 | L16: 3705
A17: YXKK4502-2 | B17: 500 | C17: 35.5 | D17: 2976 | E17: 94.5 | F17: 0.86 | G17: 1.8 | H17: 0.6 | I17: 7.0 | J17: 9.5 | K17: 39.0 | L17: 3775
A18: YXKK4503-2 | B18: 560 | C18: 39.7 | D18: 2976 | E18: 94.7 | F18: 0.86 | G18: 1.8 | H18: 0.6 | I18: 7.0 | J18: 10.4 | K18: 40.2 | L18: 4045
A19: YXKK4504-2 | B19: 630 | C19: 44.1 | D19: 2976 | E19: 94.7 | F19: 0.87 | G19: 1.8 | H19: 0.6 | I19: 7.0 | J19: 11.4 | K19: 43.0 | L19: 4245
A20: YXKK4505-2 | B20: 710 | C20: 49.7 | D20: 2976 | E20: 94.8 | F20: 0.87 | G20: 1.8 | H20: 0.6 | I20: 7.0 | J20: 12.2 | K20: 46.5 | L20: 4395
A21: YXKK500S2-2 | B21: 500 | C21: 35.5 | D21: 2975 | E21: 94.5 | F21: 0.86 | G21: 1.8 | H21: 0.6 | I21: 7.0 | J21: 14.7 | K21: 55.4 | L21: 4380
A22: YXKK500S1-2 | B22: 560 | C22: 39.7 | D22: 2975 | E22: 94.7 | F22: 0.86 | G22: 1.8 | H22: 0.6 | I22: 7.0 | J22: 15.7 | K22: 59.1 | L22: 4470
A23: YXKK5001-2 | B23: 630 | C23: 44.1 | D23: 2978 | E23: 94.7 | F23: 0.87 | G23: 1.8 | H23: 0.6 | I23: 7.0 | J23: 17.7 | K23: 63.2 | L23: 4590
A24: YXKK5002-2 | B24: 710 | C24: 49.7 | D24: 2978 | E24: 94.8 | F24: 0.87 | G24: 1.8 | H24: 0.6 | I24: 7.0 | J24: 18.7 | K24: 68.8 | L24: 4720
A25: YXKK5003-2 | B25: 800 | C25: 55.9 | D25: 2978 | E25: 95.0 | F25: 0.87 | G25: 1.8 | H25: 0.6 | I25: 7.0 | J25: 19.7 | K25: 75.5 | L25: 4900
A26: YXKK5004-2 | B26: 900 | C26: 62.8 | D26: 2978 | E26: 95.1 | F26: 0.87 | G26: 1.8 | H26: 0.6 | I26: 7.0 | J26: 20.8 | K26: 77.5 | L26: 5080
A27: YXKK5005-2 | B27: 1000 | C27: 69.7 | D27: 2978 | E27: 95.2 | F27: 0.87 | G27: 1.8 | H27: 0.6 | I27: 7.0 | J27: 21.7 | K27: 80.0 | L27: 5290
A28: YXKK5006-2 | B28: 1120 | C28: 78.0 | D28: 2978 | E28: 95.3 | F28: 0.87 | G28: 1.8 | H28: 0.6 | I28: 7.0 | J28: 22.8 | K28: 84.0 | L28: 5470
A29: YXKK560S2-2 | B29: 900 | C29: 62.8 | D29: 2978 | E29: 95.1 | F29: 0.87 | G29: 1.8 | H29: 0.6 | I29: 7.0 | J29: 31.8 | K29: 85.5 | L29: 7970
A30: YXKK560S1-2 | B30: 1000 | C30: 69.7 | D30: 2979 | E30: 95.2 | F30: 0.87 | G30: 1.8 | H30: 0.6 | I30: 7.0 | J30: 35.7 | K30: 90.0 | L30: 8220
A31: YXKK5601-2 | B31: 1120 | C31: 78.0 | D31: 2980 | E31: 95.3 | F31: 0.87 | G31: 1.8 | H31: 0.6 | I31: 7.0 | J31: 42.7 | K31: 97.0 | L31: 8470
A32: YXKK5602-2 | B32: 1250 | C32: 86.9 | D32: 2980 | E32: 95.5 | F32: 0.87 | G32: 1.8 | H32: 0.6 | I32: 7.0 | J32: 44.0 | K32: 97.5 | L32: 8680
A33: YXKK5603-2 | B33: 1400 | C33: 97.1 | D33: 2980 | E33: 95.7 | F33: 0.87 | G33: 1.8 | H33: 0.6 | I33: 7.0 | J33: 45.5 | K33: 98.0 | L33: 8920
A34: YXKK5604-2 | B34: 1600 | C34: 110 | D34: 2980 | E34: 95.7 | F34: 0.88 | G34: 1.8 | H34: 0.6 | I34: 7.0 | J34: 47.8 | K34: 99.0 | L34: 9160
A35: YXKK5605-2 | B35: 1800 | C35: 123 | D35: 2980 | E35: 95.8 | F35: 0.88 | G35: 1.8 | H35: 0.6 | I35: 7.0 | J35: 48.9 | K35: 99.5 | L35: 9410
A36: YXKK630S3-2 | B36: 1250 | C36: 86.9 | D36: 2980 | E36: 95.5 | F36: 0.87 | G36: 1.8 | H36: 0.6 | I36: 7.0 | J36: 42.7 | K36: 98.0 | L36: 9700
A37: YXKK630S2-2 | B37: 1400 | C37: 97.1 | D37: 2980 | E37: 95.7 | F37: 0.87 | G37: 1.8 | H37: 0.6 | I37: 7.0 | J37: 46.0 | K37: 99.0 | L37: 10100
A38: YXKK630S1-2 | B38: 1600 | C38: 110 | D38: 2981 | E38: 95.7 | F38: 0.88 | G38: 1.8 | H38: 0.6 | I38: 7.0 | J38: 53.0 | K38: 100 | L38: 10500
A39: YXKK6301-2 | B39: 2000 | C39: 137 | D39: 2981 | E39: 96.0 | F39: 0.88 | G39: 1.8 | H39: 0.6 | I39: 7.0 | J39: 56.2 | K39: 101 | L39: 10900
A40: YXKK6302-2 | B40: 2100 | C40: 144 | D40: 2981 | E40: 96.0 | F40: 0.88 | G40: 1.8 | H40: 0.6 | I40: 7.0 | J40: 59.8 | K40: 103 | L40: 11250
A41: YXKK6303-2 | B41: 2240 | C41: 153 | D41: 2981 | E41: 96.2 | F41: 0.88 | G41: 1.8 | H41: 0.6 | I41: 7.0 | J41: 62.8 | K41: 104 | L41: 11600
A42: YXKK6304-2 | B42: 2350 | C42: 160 | D42: 2981 | E42: 96.2 | F42: 0.88 | G42: 1.8 | H42: 0.6 | I42: 7.0 | J42: 66.0 | K42: 105 | L42: 12000
A43: YXKK6305-2 | B43: 2500 | C43: 171 | D43: 2981 | E43: 96.2 | F43: 0.88 | G43: 1.8 | H43: 0.6 | I43: 7.0 | J43: 69.1 | K43: 106 | L43: 12400
A44: YXKK4001-4 | B44: 220 | C44: 16.5 | D44: 1490 | E44: 92.8 | F44: 0.83 | G44: 1.8 | H44: 0.7 | I44: 7.0 | J44: 6.0 | K44: 26.4 | L44: 3055
A45: YXKK4002-4 | B45: 250 | C45: 18.7 | D45: 1490 | E45: 93.0 | F45: 0.83 | G45: 1.8 | H45: 0.7 | I45: 7.0 | J45: 7.0 | K45: 33.6 | L45: 3090
A46: YXKK4003-4 | B46: 280 | C46: 20.9 | D46: 1490 | E46: 93.2 | F46: 0.83 | G46: 1.8 | H46: 0.7 | I46: 7.0 | J46: 8.0 | K46: 41.6 | L46: 3130
A47: YXKK4004-4 | B47: 315 | C47: 23.4 | D47: 1490 | E47: 93.5 | F47: 0.83 | G47: 1.8 | H47: 0.7 | I47: 7.0 | J47: 9.0 | K47: 51.3 | L47: 3180
A48: YXKK4005-4 | B48: 355 | C48: 25.5 | D48: 1490 | E48: 93.6 | F48: 0.86 | G48: 1.8 | H48: 0.7 | I48: 7.0 | J48: 10.0 | K48: 60.0 | L48: 3220
A49: YXKK4006-4 | B49: 400 | C49: 28.7 | D49: 1490 | E49: 93.7 | F49: 0.86 | G49: 1.8 | H49: 0.7 | I49: 7.0 | J49: 11.0 | K49: 70.4 | L49: 3260
A50: YXKK450S6-4 | B50: 220 | C50: 16.5 | D50: 1492 | E50: 92.8 | F50: 0.83 | G50: 1.8 | H50: 0.7 | I50: 7.0 | J50: 11.4 | K50: 78.0 | L50: 3250
A51: YXKK450S5-4 | B51: 250 | C51: 18.7 | D51: 1492 | E51: 93.0 | F51: 0.83 | G51: 1.8 | H51: 0.7 | I51: 7.0 | J51: 12.6 | K51: 87.0 | L51: 3320
A52: YXKK450S4-4 | B52: 280 | C52: 20.9 | D52: 1492 | E52: 93.2 | F52: 0.83 | G52: 1.8 | H52: 0.7 | I52: 7.0 | J52: 13.1 | K52: 97.0 | L52: 3480
A53: YXKK450S3-4 | B53: 315 | C53: 23.4 | D53: 1492 | E53: 93.5 | F53: 0.83 | G53: 1.8 | H53: 0.7 | I53: 7.0 | J53: 13.5 | K53: 107 | L53: 3600
A54: YXKK450S2-4 | B54: 355 | C54: 25.5 | D54: 1492 | E54: 93.6 | F54: 0.86 | G54: 1.8 | H54: 0.7 | I54: 7.0 | J54: 14.0 | K54: 119 | L54: 3700
A55: YXKK450S1-4 | B55: 400 | C55: 28.7 | D55: 1492 | E55: 93.7 | F55: 0.86 | G55: 1.8 | H55: 0.7 | I55: 7.0 | J55: 14.4 | K55: 132 | L55: 3850
A56: YXKK4501-4 | B56: 450 | C56: 32.1 | D56: 1492 | E56: 94.1 | F56: 0.86 | G56: 1.8 | H56: 0.7 | I56: 7.0 | J56: 15.3 | K56: 147 | L56: 3950
A57: YXKK4502-4 | B57: 500 | C57: 35.7 | D57: 1492 | E57: 94.1 | F57: 0.86 | G57: 1.8 | H57: 0.7 | I57: 7.0 | J57: 15.8 | K57: 162 | L57: 4050
A58: YXKK4503-4 | B58: 560 | C58: 39.8 | D58: 1492 | E58: 94.4 | F58: 0.86 | G58: 1.8 | H58: 0.7 | I58: 7.0 | J58: 16.5 | K58: 175 | L58: 4150
A59: YXKK4504-4 | B59: 630 | C59: 44.7 | D59: 1492 | E59: 94.6 | F59: 0.86 | G59: 1.8 | H59: 0.7 | I59: 7.0 | J59: 17.2 | K59: 190 | L59: 4240
A60: YXKK4505-4 | B60: 710 | C60: 50.1 | D60: 1492 | E60: 95.1 | F60: 0.86 | G60: 1.8 | H60: 0.7 | I60: 7.0 | J60: 18.0 | K60: 200 | L60: 4340
A61: YXKK500S2-4 | B61: 500 | C61: 35.7 | D61: 1489 | E61: 94.1 | F61: 0.86 | G61: 1.8 | H61: 0.7 | I61: 7.0 | J61: 25.0 | K61: 165 | L61: 4700
A62: YXKK500S1-4 | B62: 560 | C62: 39.8 | D62: 1489 | E62: 94.4 | F62: 0.86 | G62: 1.8 | H62: 0.7 | I62: 7.0 | J62: 26.0 | K62: 182 | L62: 4800
A63: YXKK5001-4 | B63: 630 | C63: 44.7 | D63: 1489 | E63: 94.6 | F63: 0.86 | G63: 1.8 | H63: 0.7 | I63: 7.0 | J63: 28.0 | K63: 201 | L63: 5000
A64: YXKK5002-4 | B64: 710 | C64: 50.1 | D64: 1489 | E64: 95.1 | F64: 0.86 | G64: 1.8 | H64: 0.7 | I64: 7.0 | J64: 30.0 | K64: 220 | L64: 5330
A65: YXKK5003-4 | B65: 800 | C65: 55.8 | D65: 1489 | E65: 95.2 | F65: 0.87 | G65: 1.8 | H65: 0.7 | I65: 7.0 | J65: 32.0 | K65: 242 | L65: 5550
A66: YXKK5004-4 | B66: 900 | C66: 62.7 | D66: 1489 | E66: 95.3 | F66: 0.87 | G66: 1.8 | H66: 0.7 | I66: 7.0 | J66: 34.0 | K66: 250 | L66: 5730
A67: YXKK5005-4 | B67: 1000 | C67: 69.6 | D67: 1489 | E67: 95.4 | F67: 0.87 | G67: 1.8 | H67: 0.7 | I67: 7.0 | J67: 36.0 | K67: 262 | L67: 5920
A68: YXKK5006-4 | B68: 1120 | C68: 77.8 | D68: 1489 | E68: 95.5 | F68: 0.87 | G68: 1.8 | H68: 0.7 | I68: 7.0 | J68: 38.0 | K68: 279 | L68: 6120
A69: YXKK560S2-4 | B69: 900 | C69: =B69*100/1.732/10/E69/F69 -> 62.7 | D69: 1493 | E69: 95.3 | F69: 0.87 | G69: 1.8 | H69: 0.7 | I69: 7.0 | J69: 44.0 | K69: 270 | L69: 8000
A70: YXKK560S1-4 | B70: 1000 | C70: 69.6 | D70: 1493 | E70: 95.4 | F70: 0.87 | G70: 1.8 | H70: 0.7 | I70: 7.0 | J70: 47.0 | K70: 292 | L70: 8250
A71: YXKK5601-4 | B71: 1120 | C71: 77.8 | D71: 1493 | E71: 95.5 | F71: 0.87 | G71: 1.8 | H71: 0.7 | I71: 7.0 | J71: 50.0 | K71: 320 | L71: 8500
A72: YXKK5602-4 | B72: 1250 | C72: 85.8 | D72: 1493 | E72: 95.6 | F72: 0.88 | G72: 1.8 | H72: 0.7 | I72: 7.0 | J72: 53.0 | K72: 340 | L72: 8750
A73: YXKK5603-4 | B73: 1400 | C73: 95.9 | D73: 1493 | E73: 95.8 | F73: 0.88 | G73: 1.8 | H73: 0.7 | I73: 7.0 | J73: 56.0 | K73: 360 | L73: 9000
A74: YXKK5604-4 | B74: 1600 | C74: 109 | D74: 1493 | E74: 95.9 | F74: 0.88 | G74: 1.8 | H74: 0.7 | I74: 7.0 | J74: 59.0 | K74: 375 | L74: 9250
A75: YXKK5605-4 | B75: 1800 | C75: 123 | D75: 1493 | E75: 96.0 | F75: 0.88 | G75: 1.8 | H75: 0.7 | I75: 7.0 | J75: 62.0 | K75: 388 | L75: 9500
A76: YXKK630S3-4 | B76: 1250 | C76: 85.8 | D76: 1492 | E76: 95.6 | F76: 0.88 | G76: 1.8 | H76: 0.6 | I76: 7.0 | J76: 90.0 | K76: 350 | L76: 10300
A77: YXKK630S2-4 | B77: 1400 | C77: 95.9 | D77: 1492 | E77: 95.8 | F77: 0.88 | G77: 1.8 | H77: 0.6 | I77: 7.0 | J77: 95.0 | K77: 382 | L77: 10700
A78: YXKK630S1-4 | B78: 1600 | C78: 109 | D78: 1492 | E78: 95.9 | F78: 0.88 | G78: 1.8 | H78: 0.6 | I78: 7.0 | J78: 101 | K78: 423 | L78: 10900
A79: YXKK6301-4 | B79: 2000 | C79: 136 | D79: 1492 | E79: 96.2 | F79: 0.88 | G79: 1.8 | H79: 0.6 | I79: 7.0 | J79: 105.0 | K79: 452 | L79: 11300
A80: YXKK6302-4 | B80: 2100 | C80: 143 | D80: 1492 | E80: 96.2 | F80: 0.88 | G80: 1.8 | H80: 0.6 | I80: 7.0 | J80: 109 | K80: 488 | L80: 11600
A81: YXKK6303-4 | B81: 2240 | C81: 153 | D81: 1492 | E81: 96.3 | F81: 0.88 | G81: 1.8 | H81: 0.6 | I81: 7.0 | J81: 114 | K81: 520 | L81: 11900
A82: YXKK6304-4 | B82: 2350 | C82: 160 | D82: 1492 | E82: 96.3 | F82: 0.88 | G82: 1.8 | H82: 0.6 | I82: 7.0 | J82: 119 | K82: 552 | L82: 12300
A83: YXKK6305-4 | B83: 2500 | C83: 170 | D83: 1492 | E83: 96.3 | F83: 0.88 | G83: 1.8 | H83: 0.6 | I83: 7.0 | J83: 123 | K83: 585 | L83: 12700
A84: YXKK4004-6 | B84: 220 | C84: 17.1 | D84: 991 | E84: 92.7 | F84: 0.80 | G84: 1.8 | H84: 0.7 | I84: 6.0 | J84: 14.0 | K84: 200 | L84: 3350
A85: YXKK4005-6 | B85: 250 | C85: 19.4 | D85: 991 | E85: 92.9 | F85: 0.80 | G85: 1.8 | H85: 0.7 | I85: 6.0 | J85: 14.5 | K85: 220 | L85: 3430
A86: YXKK4006-6 | B86: 280 | C86: 21.7 | D86: 991 | E86: 93.1 | F86: 0.80 | G86: 1.8 | H86: 0.7 | I86: 6.0 | J86: 15.0 | K86: 250 | L86: 3510
A87: YXKK450S3-6 | B87: 220 | C87: 17.1 | D87: 992 | E87: 92.7 | F87: 0.80 | G87: 1.8 | H87: 0.7 | I87: 6.0 | J87: 15.5 | K87: 210 | L87: 3670
A88: YXKK450S2-6 | B88: 250 | C88: 19.4 | D88: 992 | E88: 92.9 | F88: 0.80 | G88: 1.8 | H88: 0.7 | I88: 6.0 | J88: 16.3 | K88: 235 | L88: 3730
A89: YXKK450S1-6 | B89: 280 | C89: 21.7 | D89: 992 | E89: 93.1 | F89: 0.80 | G89: 1.8 | H89: 0.7 | I89: 6.0 | J89: 17.4 | K89: 260 | L89: 3720
A90: YXKK4501-6 | B90: 315 | C90: 23.7 | D90: 992 | E90: 93.4 | F90: 0.82 | G90: 1.8 | H90: 0.7 | I90: 6.0 | J90: 18.4 | K90: 290 | L90: 3820
A91: YXKK4502-6 | B91: 355 | C91: 26.4 | D91: 992 | E91: 93.5 | F91: 0.83 | G91: 1.8 | H91: 0.7 | I91: 6.0 | J91: 19.5 | K91: 305 | L91: 3920
A92: YXKK4503-6 | B92: 400 | C92: 29.7 | D92: 992 | E92: 93.7 | F92: 0.83 | G92: 1.8 | H92: 0.7 | I92: 6.0 | J92: 20.5 | K92: 318 | L92: 4460
A93: YXKK4504-6 | B93: 450 | C93: 33.4 | D93: 992 | E93: 93.8 | F93: 0.83 | G93: 1.8 | H93: 0.7 | I93: 6.0 | J93: 21.6 | K93: 323 | L93: 4500
A94: YXKK4505-6 | B94: 500 | C94: 36.9 | D94: 992 | E94: 94.2 | F94: 0.83 | G94: 1.8 | H94: 0.7 | I94: 6.0 | J94: 22.7 | K94: 338 | L94: 4600
A95: YXKK500S3-6 | B95: 355 | C95: 26.4 | D95: 994 | E95: 93.5 | F95: 0.83 | G95: 1.8 | H95: 0.7 | I95: 6.0 | J95: 27.0 | K95: 326 | L95: 4500
A96: YXKK500S2-6 | B96: 400 | C96: 29.7 | D96: 994 | E96: 93.7 | F96: 0.83 | G96: 1.8 | H96: 0.7 | I96: 6.0 | J96: 29.0 | K96: 362 | L96: 4570
A97: YXKK500S1-6 | B97: 450 | C97: 33.4 | D97: 994 | E97: 93.8 | F97: 0.83 | G97: 1.8 | H97: 0.7 | I97: 6.0 | J97: 31.0 | K97: 400 | L97: 4700
A98: YXKK5001-6 | B98: 500 | C98: 36.9 | D98: 994 | E98: 94.2 | F98: 0.83 | G98: 1.8 | H98: 0.7 | I98: 6.0 | J98: 33.0 | K98: 446 | L98: 4890
A99: YXKK5002-6 | B99: 560 | C99: 40.8 | D99: 994 | E99: 94.4 | F99: 0.84 | G99: 1.8 | H99: 0.7 | I99: 6.0 | J99: 35.0 | K99: 485 | L99: 5255
A100: YXKK5003-6 | B100: 630 | C100: 45.7 | D100: 994 | E100: 94.7 | F100: 0.84 | G100: 1.8 | H100: 0.7 | I100: 6.0 | J100: 37.0 | K100: 510 | L100: 5485
A101: YXKK5004-6 | B101: 710 | C101: 51.5 | D101: 994 | E101: 94.8 | F101: 0.84 | G101: 1.8 | H101: 0.7 | I101: 6.0 | J101: 39.0 | K101: 529 | L101: 5865
A102: YXKK5005-6 | B102: 800 | C102: 57.9 | D102: 994 | E102: 95.0 | F102: 0.84 | G102: 1.8 | H102: 0.7 | I102: 6.0 | J102: 41.0 | K102: 538 | L102: 6150
A103: YXKK5006-6 | B103: 900 | C103: 64.2 | D103: 994 | E103: 95.2 | F103: 0.85 | G103: 1.8 | H103: 0.7 | I103: 6.0 | J103: 43.0 | K103: 550 | L103: 6450
A104: YXKK560S3-6 | B104: 630 | C104: 45.7 | D104: 992 | E104: 94.7 | F104: 0.84 | G104: 1.8 | H104: 0.7 | I104: 6.0 | J104: 50.0 | K104: 540 | L104: 6440
A105: YXKK560S2-6 | B105: 710 | C105: 51.5 | D105: 992 | E105: 94.8 | F105: 0.84 | G105: 1.8 | H105: 0.7 | I105: 6.0 | J105: 60.0 | K105: 599 | L105: 6560
A106: YXKK560S1-6 | B106: 800 | C106: 57.9 | D106: 992 | E106: 95.0 | F106: 0.84 | G106: 1.8 | H106: 0.7 | I106: 6.0 | J106: 63.0 | K106: 665 | L106: 6760
A107: YXKK5601-6 | B107: 900 | C107: 64.2 | D107: 992 | E107: 95.2 | F107: 0.85 | G107: 1.8 | H107: 0.7 | I107: 6.0 | J107: 67.0 | K107: 736 | L107: 6980
A108: YXKK5602-6 | B108: 1000 | C108: 71.3 | D108: 992 | E108: 95.3 | F108: 0.85 | G108: 1.8 | H108: 0.7 | I108: 6.0 | J108: 70.0 | K108: 760 | L108: 7200
A109: YXKK5603-6 | B109: 1120 | C109: 79.7 | D109: 992 | E109: 95.5 | F109: 0.85 | G109: 1.8 | H109: 0.7 | I109: 6.0 | J109: 72.0 | K109: 780 | L109: 7420
A110: YXKK5604-6 | B110: 1250 | C110: 87.8 | D110: 992 | E110: 95.6 | F110: 0.86 | G110: 1.8 | H110: 0.7 | I110: 6.0 | J110: 75.0 | K110: 800 | L110: 7630
A111: YXKK5605-6 | B111: 1400 | C111: 98.0 | D111: 992 | E111: 95.9 | F111: 0.86 | G111: 1.8 | H111: 0.7 | I111: 6.0 | J111: 78.0 | K111: 825 | L111: 7850
A112: YXKK630S3-6 | B112: 1000 | C112: 71.3 | D112: 993 | E112: 95.3 | F112: 0.85 | G112: 1.8 | H112: 0.6 | I112: 6.0 | J112: 121 | K112: 805 | L112: 11150
A113: YXKK630S2-6 | B113: 1120 | C113: 79.7 | D113: 993 | E113: 95.5 | F113: 0.85 | G113: 1.8 | H113: 0.6 | I113: 6.0 | J113: 128 | K113: 886 | L113: 11550
A114: YXKK630S1-6 | B114: 1250 | C114: 87.8 | D114: 993 | E114: 95.6 | F114: 0.86 | G114: 1.8 | H114: 0.6 | I114: 6.0 | J114: 135 | K114: 970 | L114: 11900
A115: YXKK6301-6 | B115: 1600 | C115: 112 | D115: 993 | E115: 96.0 | F115: 0.86 | G115: 1.8 | H115: 0.6 | I115: 6.0 | J115: 140 | K115: 1050 | L115: 12300
A116: YXKK6302-6 | B116: 1800 | C116: 126 | D116: 993 | E116: 96.0 | F116: 0.86 | G116: 1.8 | H116: 0.6 | I116: 6.0 | J116: 147 | K116: 1120 | L116: 12700
A117: YXKK6303-6 | B117: 2000 | C117: 140 | D117: 993 | E117: 96.1 | F117: 0.86 | G117: 1.8 | H117: 0.6 | I117: 6.0 | J117: 155 | K117: 1200 | L117: 13100
A118: YXKK6304-6 | B118: 2100 | C118: 147 | D118: 993 | E118: 96.1 | F118: 0.86 | G118: 1.8 | H118: 0.6 | I118: 6.0 | J118: 162 | K118: 1280 | L118: 13500
A119: YXKK6305-6 | B119: 2240 | C119: 156 | D119: 993 | E119: 96.1 | F119: 0.86 | G119: 1.8 | H119: 0.6 | I119: 6.0 | J119: 169 | K119: 1360 | L119: 13900
A120: YXKK4502-8 | B120: 220 | C120: 18.3 | D120: 745 | E120: 92.6 | F120: 0.75 | G120: 1.8 | H120: 0.7 | I120: 6.0 | J120: 24 | K120: 380 | L120: 3400
A121: YXKK4503-8 | B121: 250 | C121: 20.7 | D121: 745 | E121: 92.8 | F121: 0.75 | G121: 1.8 | H121: 0.7 | I121: 6.0 | J121: 25 | K121: 390 | L121: 3500
A122: YXKK4504-8 | B122: 280 | C122: 22.9 | D122: 745 | E122: 93.0 | F122: 0.76 | G122: 1.8 | H122: 0.7 | I122: 6.0 | J122: 26 | K122: 405 | L122: 3600
A123: YXKK4505-8 | B123: 315 | C123: 25.3 | D123: 745 | E123: 93.4 | F123: 0.77 | G123: 1.8 | H123: 0.7 | I123: 6.0 | J123: 27 | K123: 420 | L123: 3700
A124: YXKK500S4-8 | B124: 220 | C124: 18.3 | D124: 745 | E124: 92.6 | F124: 0.75 | G124: 1.8 | H124: 0.7 | I124: 6.0 | J124: 28 | K124: 423 | L124: 4100
A125: YXKK500S3-8 | B125: 250 | C125: 20.7 | D125: 745 | E125: 92.8 | F125: 0.75 | G125: 1.8 | H125: 0.7 | I125: 6.0 | J125: 30 | K125: 476 | L125: 4260
A126: YXKK500S2-8 | B126: 280 | C126: 22.9 | D126: 745 | E126: 93.0 | F126: 0.76 | G126: 1.8 | H126: 0.7 | I126: 6.0 | J126: 32 | K126: 530 | L126: 4390
A127: YXKK500S1-8 | B127: 315 | C127: 25.3 | D127: 745 | E127: 93.4 | F127: 0.77 | G127: 1.8 | H127: 0.7 | I127: 6.0 | J127: 34 | K127: 588 | L127: 4500
A128: YXKK5001-8 | B128: 355 | C128: 28.4 | D128: 745 | E128: 93.7 | F128: 0.77 | G128: 1.8 | H128: 0.7 | I128: 6.0 | J128: 36 | K128: 656 | L128: 4650
A129: YXKK5002-8 | B129: 400 | C129: 31.6 | D129: 745 | E129: 93.8 | F129: 0.78 | G129: 1.8 | H129: 0.7 | I129: 6.0 | J129: 38 | K129: 710 | L129: 4930
A130: YXKK5003-8 | B130: 450 | C130: 35.5 | D130: 745 | E130: 93.9 | F130: 0.78 | G130: 1.8 | H130: 0.7 | I130: 6.0 | J130: 40 | K130: 760 | L130: 5050
A131: YXKK5004-8 | B131: 500 | C131: 38.8 | D131: 745 | E131: 94.3 | F131: 0.79 | G131: 1.8 | H131: 0.7 | I131: 6.0 | J131: 42 | K131: 800 | L131: 5200
A132: YXKK5005-8 | B132: 560 | C132: 43.3 | D132: 745 | E132: 94.5 | F132: 0.79 | G132: 1.8 | H132: 0.7 | I132: 6.0 | J132: 44 | K132: 860 | L132: 5400
A133: YXKK5006-8 | B133: 630 | C133: =B133*100/1.732/10/E133/F133 -> 46.7 | D133: 745 | E133: 94.9 | F133: 0.82 | G133: 1.8 | H133: 0.7 | I133: 6.0 | J133: 46 | K133: 920 | L133: 5680
A134: YXKK560S3-8 | B134: 450 | C134: 35.5 | D134: 745 | E134: 93.9 | F134: 0.78 | G134: 1.8 | H134: 0.7 | I134: 6.0 | J134: 63 | K134: 810 | L134: 6510
A135: YXKK560S2-8 | B135: 500 | C135: 38.8 | D135: 745 | E135: 94.3 | F135: 0.79 | G135: 1.8 | H135: 0.7 | I135: 6.0 | J135: 67 | K135: 890 | L135: 6710
A136: YXKK560S1-8 | B136: 560 | C136: 43.3 | D136: 745 | E136: 94.5 | F136: 0.79 | G136: 1.8 | H136: 0.7 | I136: 6.0 | J136: 70 | K136: 988 | L136: 6940
A137: YXKK5601-8 | B137: 630 | C137: 46.7 | D137: 745 | E137: 94.9 | F137: 0.82 | G137: 1.8 | H137: 0.7 | I137: 6.0 | J137: 74 | K137: 1098 | L137: 7290
A138: YXKK5602-8 | B138: 710 | C138: 52.6 | D138: 745 | E138: 95.0 | F138: 0.82 | G138: 1.8 | H138: 0.7 | I138: 6.0 | J138: 77 | K138: 1170 | L138: 7530
A139: YXKK5603-8 | B139: 800 | C139: 59.2 | D139: 745 | E139: 95.2 | F139: 0.82 | G139: 1.8 | H139: 0.7 | I139: 6.0 | J139: 80 | K139: 1230 | L139: 7800
A140: YXKK5604-8 | B140: 900 | C140: 66.5 | D140: 745 | E140: 95.3 | F140: 0.82 | G140: 1.8 | H140: 0.7 | I140: 6.0 | J140: 84 | K140: 1290 | L140: 8100
A141: YXKK5605-8 | B141: 1000 | C141: 74.6 | D141: 745 | E141: 95.5 | F141: 0.81 | G141: 1.8 | H141: 0.7 | I141: 6.0 | J141: 88 | K141: 1350 | L141: 8350
A142: YXKK630S2-8 | B142: 710 | C142: 52.6 | D142: 745 | E142: 95.0 | F142: 0.82 | G142: 1.8 | H142: 0.7 | I142: 6.0 | J142: 145 | K142: 1221 | L142: 10800
A143: YXKK630S1-8 | B143: 800 | C143: 59.2 | D143: 745 | E143: 95.2 | F143: 0.82 | G143: 1.8 | H143: 0.7 | I143: 6.0 | J143: 151 | K143: 1357 | L143: 11200
A144: YXKK6301-8 | B144: 900 | C144: 66.5 | D144: 745 | E144: 95.3 | F144: 0.82 | G144: 1.8 | H144: 0.7 | I144: 6.0 | J144: 166 | K144: 1505 | L144: 11600
A145: YXKK6302-8 | B145: 1120 | C145: 81.5 | D145: 745 | E145: 95.6 | F145: 0.83 | G145: 1.8 | H145: 0.7 | I145: 6.0 | J145: 172 | K145: 1620 | L145: 12000
A146: YXKK6303-8 | B146: 1250 | C146: 90.9 | D146: 745 | E146: 95.7 | F146: 0.83 | G146: 1.8 | H146: 0.7 | I146: 6.0 | J146: 179 | K146: 1740 | L146: 12400
A147: YXKK6304-8 | B147: 1400 | C147: 102 | D147: 745 | E147: 95.8 | F147: 0.83 | G147: 1.8 | H147: 0.7 | I147: 6.0 | J147: 185 | K147: 1850 | L147: 12800
A148: YXKK6305-8 | B148: 1600 | C148: 116 | D148: 745 | E148: 95.8 | F148: 0.83 | G148: 1.8 | H148: 0.7 | I148: 6.0 | J148: 191 | K148: 1970 | L148: 13200
A149: YXKK4505-10 | B149: 220 | C149: 19.1 | D149: 593 | E149: 92.5 | F149: 0.72 | G149: 1.8 | H149: 0.7 | I149: 5.5 | J149: 37 | K149: 680 | L149: 4700
A150: YXKK500S1-10 | B150: 220 | C150: 19.1 | D150: 595 | E150: 92.5 | F150: 0.72 | G150: 1.8 | H150: 0.7 | I150: 5.5 | J150: 38 | K150: 689 | L150: 5910
A151: YXKK5001-10 | B151: 250 | C151: 21.6 | D151: 595 | E151: 92.7 | F151: 0.72 | G151: 1.8 | H151: 0.7 | I151: 5.5 | J151: 39.3 | K151: 775 | L151: 6110
A152: YXKK5002-10 | B152: 280 | C152: 23.5 | D152: 595 | E152: 93.0 | F152: 0.74 | G152: 1.8 | H152: 0.7 | I152: 5.5 | J152: 40.0 | K152: 865 | L152: 6300
A153: YXKK5003-10 | B153: 315 | C153: 26.4 | D153: 595 | E153: 93.2 | F153: 0.74 | G153: 1.8 | H153: 0.7 | I153: 5.5 | J153: 41.5 | K153: 920 | L153: 6460
A154: YXKK5004-10 | B154: 355 | C154: 29.3 | D154: 595 | E154: 93.4 | F154: 0.75 | G154: 1.8 | H154: 0.7 | I154: 5.5 | J154: 42.8 | K154: 1000 | L154: 6630
A155: YXKK5005-10 | B155: 400 | C155: 32.9 | D155: 595 | E155: 93.6 | F155: 0.75 | G155: 1.8 | H155: 0.7 | I155: 5.5 | J155: 44.0 | K155: 1070 | L155: 6800
A156: YXKK5006-10 | B156: 450 | C156: 36.4 | D156: 595 | E156: 93.8 | F156: 0.76 | G156: 1.8 | H156: 0.7 | I156: 5.5 | J156: 45.3 | K156: 1160 | L156: 6960
A157: YXKK560S4-10 | B157: 315 | C157: 26.4 | D157: 595 | E157: 93.2 | F157: 0.74 | G157: 1.8 | H157: 0.7 | I157: 6.0 | J157: 78.0 | K157: 1014 | L157: 7590
A158: YXKK560S3-10 | B158: 355 | C158: 29.3 | D158: 595 | E158: 93.4 | F158: 0.75 | G158: 1.8 | H158: 0.7 | I158: 6.0 | J158: 83.0 | K158: 1131 | L158: 7840
A159: YXKK560S2-10 | B159: 400 | C159: 32.9 | D159: 595 | E159: 93.6 | F159: 0.75 | G159: 1.8 | H159: 0.7 | I159: 6.0 | J159: 87.0 | K159: 1261 | L159: 8090
A160: YXKK560S1-10 | B160: 450 | C160: 36.4 | D160: 595 | E160: 93.8 | F160: 0.76 | G160: 1.8 | H160: 0.7 | I160: 6.0 | J160: 92.0 | K160: 1403 | L160: 8300
A161: YXKK5601-10 | B161: 500 | C161: 39.9 | D161: 595 | E161: 94.0 | F161: 0.77 | G161: 1.8 | H161: 0.7 | I161: 6.0 | J161: 97.0 | K161: 1544 | L161: 8500
A162: YXKK5602-10 | B162: 560 | C162: 44.1 | D162: 595 | E162: 94.1 | F162: 0.78 | G162: 1.8 | H162: 0.7 | I162: 6.0 | J162: 102 | K162: 1620 | L162: 8700
A163: YXKK5603-10 | B163: 630 | C163: 49.5 | D163: 595 | E163: 94.3 | F163: 0.78 | G163: 1.8 | H163: 0.7 | I163: 6.0 | J163: 107 | K163: 1710 | L163: 8910
A164: YXKK5604-10 | B164: 710 | C164: 55.6 | D164: 595 | E164: 94.5 | F164: 0.78 | G164: 1.8 | H164: 0.7 | I164: 6.0 | J164: 112 | K164: 1820 | L164: 9100
A165: YXKK5605-10 | B165: 800 | C165: 62.5 | D165: 595 | E165: 94.8 | F165: 0.78 | G165: 1.8 | H165: 0.7 | I165: 6.0 | J165: 117 | K165: 1930 | L165: 9320
A166: YXKK630S4-10 | B166: 560 | C166: 44.1 | D166: 595 | E166: 94.1 | F166: 0.78 | G166: 1.8 | H166: 0.7 | I166: 6.0 | J166: 153 | K166: 1710 | L166: 11000
A167: YXKK630S3-10 | B167: 630 | C167: 49.5 | D167: 595 | E167: 94.3 | F167: 0.78 | G167: 1.8 | H167: 0.7 | I167: 6.0 | J167: 162 | K167: 1902 | L167: 11400
A168: YXKK630S2-10 | B168: 710 | C168: 55.6 | D168: 595 | E168: 94.5 | F168: 0.78 | G168: 1.8 | H168: 0.7 | I168: 6.0 | J168: 169 | K168: 2116 | L168: 11800
A169: YXKK630S1-10 | B169: 800 | C169: 62.5 | D169: 595 | E169: 94.8 | F169: 0.78 | G169: 1.8 | H169: 0.7 | I169: 6.0 | J169: 178 | K169: 2355 | L169: 12200
A170: YXKK6301-10 | B170: 900 | C170: 68.4 | D170: 595 | E170: 95.0 | F170: 0.80 | G170: 1.8 | H170: 0.7 | I170: 6.0 | J170: 185 | K170: 2460 | L170: 12600
A171: YXKK6302-10 | B171: 1000 | C171: 75.9 | D171: 595 | E171: 95.1 | F171: 0.80 | G171: 1.8 | H171: 0.7 | I171: 6.0 | J171: 193 | K171: 2570 | L171: 13000
A172: YXKK6303-10 | B172: 1120 | C172: 84.9 | D172: 595 | E172: 95.2 | F172: 0.80 | G172: 1.8 | H172: 0.7 | I172: 6.0 | J172: 201 | K172: 2775 | L172: 13400
A173: YXKK6304-10 | B173: 1250 | C173: 94.7 | D173: 595 | E173: 95.3 | F173: 0.80 | G173: 1.8 | H173: 0.7 | I173: 6.0 | J173: 210 | K173: 2880 | L173: 13800
A174: YXKK6305-10 | B174: 1400 | C174: 106.0 | D174: 595 | E174: 95.3 | F174: 0.80 | G174: 1.8 | H174: 0.7 | I174: 6.0 | J174: 217 | K174: 2985 | L174: 14200
A175: YXKK5003-12 | B175: 220 | C175: 19.1 | D175: 496 | E175: 92.4 | F175: 0.72 | G175: 1.8 | H175: 0.7 | I175: 5.5 | J175: 85.0 | K175: 1060 | L175: 5910
A176: YXKK5004-12 | B176: 250 | C176: 21.6 | D176: 496 | E176: 92.6 | F176: 0.72 | G176: 1.8 | H176: 0.7 | I176: 5.5 | J176: 87.0 | K176: 1150 | L176: 6110
A177: YXKK5005-12 | B177: 280 | C177: 24.2 | D177: 496 | E177: 92.8 | F177: 0.72 | G177: 1.8 | H177: 0.7 | I177: 5.5 | J177: 89.0 | K177: 1190 | L177: 6310
A178: YXKK5006-12 | B178: 315 | C178: 27.2 | D178: 496 | E178: 93.0 | F178: 0.72 | G178: 1.8 | H178: 0.7 | I178: 5.5 | J178: 90.0 | K178: 1250 | L178: 6520
A179: YXKK560S4-12 | B179: 220 | C179: 19.1 | D179: 496 | E179: 92.4 | F179: 0.72 | G179: 1.8 | H179: 0.7 | I179: 6.0 | J179: 88.0 | K179: 1135 | L179: 7550
A180: YXKK560S3-12 | B180: 250 | C180: 21.6 | D180: 496 | E180: 92.6 | F180: 0.72 | G180: 1.8 | H180: 0.7 | I180: 6.0 | J180: 97.0 | K180: 1210 | L180: 7800
A181: YXKK560S2-12 | B181: 280 | C181: 24.2 | D181: 496 | E181: 92.8 | F181: 0.72 | G181: 1.8 | H181: 0.7 | I181: 6.0 | J181: 100 | K181: 1418 | L181: 8050
A182: YXKK560S1-12 | B182: 315 | C182: 27.2 | D182: 496 | E182: 93.0 | F182: 0.72 | G182: 1.8 | H182: 0.7 | I182: 6.0 | J182: 108 | K182: 1580 | L182: 8300
A183: YXKK5601-12 | B183: 355 | C183: 30.5 | D183: 496 | E183: 93.2 | F183: 0.72 | G183: 1.8 | H183: 0.7 | I183: 6.0 | J183: 115 | K183: 1763 | L183: 8650
A184: YXKK5602-12 | B184: 400 | C184: 33.9 | D184: 496 | E184: 93.4 | F184: 0.73 | G184: 1.8 | H184: 0.7 | I184: 6.0 | J184: 120 | K184: 1852 | L184: 9050
A185: YXKK5603-12 | B185: 450 | C185: 38.1 | D185: 496 | E185: 93.5 | F185: 0.73 | G185: 1.8 | H185: 0.7 | I185: 6.0 | J185: 125 | K185: 1955 | L185: 9450
A186: YXKK5604-12 | B186: 500 | C186: 42.2 | D186: 496 | E186: 93.8 | F186: 0.73 | G186: 1.8 | H186: 0.7 | I186: 6.0 | J186: 130 | K186: 2050 | L186: 9850
A187: YXKK5605-12 | B187: 560 | C187: 46.4 | D187: 496 | E187: 94.1 | F187: 0.74 | G187: 1.8 | H187: 0.7 | I187: 6.0 | J187: 136 | K187: 2154 | L187: 10250
A188: YXKK630S4-12 | B188: 400 | C188: 33.9 | D188: 496 | E188: 93.4 | F188: 0.73 | G188: 1.8 | H188: 0.7 | I188: 6.0 | J188: 139 | K188: 1967 | L188: 11000
A189: YXKK630S3-12 | B189: 450 | C189: 38.1 | D189: 496 | E189: 93.5 | F189: 0.73 | G189: 1.8 | H189: 0.7 | I189: 6.0 | J189: 156 | K189: 2190 | L189: 11400
A190: YXKK630S2-12 | B190: 500 | C190: 42.2 | D190: 496 | E190: 93.8 | F190: 0.73 | G190: 1.8 | H190: 0.7 | I190: 6.0 | J190: 172 | K190: 2411 | L190: 11800
A191: YXKK630S1-12 | B191: 560 | C191: 46.4 | D191: 496 | E191: 94.1 | F191: 0.74 | G191: 1.8 | H191: 0.7 | I191: 6.0 | J191: 180 | K191: 2672 | L191: 12200
A192: YXKK6301-12 | B192: 630 | C192: 52.1 | D192: 496 | E192: 94.3 | F192: 0.74 | G192: 1.8 | H192: 0.7 | I192: 6.0 | J192: 188 | K192: 2900 | L192: 12600
A193: YXKK6302-12 | B193: 710 | C193: 58.6 | D193: 496 | E193: 94.5 | F193: 0.74 | G193: 1.8 | H193: 0.7 | I193: 6.0 | J193: 195 | K193: 3120 | L193: 13000
A194: YXKK6303-12 | B194: 800 | C194: 65.8 | D194: 496 | E194: 94.8 | F194: 0.74 | G194: 1.8 | H194: 0.7 | I194: 6.0 | J194: 200 | K194: 3350 | L194: 13400
A195: YXKK6304-12 | B195: 900 | C195: 74.1 | D195: 496 | E195: 94.8 | F195: 0.74 | G195: 1.8 | H195: 0.7 | I195: 6.0 | J195: 208 | K195: 3570 | L195: 13800
A196: YXKK6305-12 | B196: 1000 | C196: 82.3 | D196: 496 | E196: 94.8 | F196: 0.74 | G196: 1.8 | H196: 0.7 | I196: 6.0 | J196: 215 | K196: 3770 | L196: 14200
A198: 注：表中重量仅供参考

Sheet YX 10KV
A1: YX系列（10KV）高压三相异步电动机技术数据
A2: 型号 | B2: 额定功率（kW） | C2: 定子电流（A） | D2: 额定转速（r/min） | E2: 效率（%） | F2: 功率因数（cosψ） | G2: 最大转矩额定转矩 | H2: 堵转转矩额定转矩 | I2: 堵转电流额定电流 | J2: 电动机转动惯量 | L2: 概量（kg)
J3: 电机 Jm （kg·m2） | K3: 允许负载 J (kg·m2）
A4: YX4001-2 | B4: 220 | C4: =B4/1.732/10/E4/F4*100 -> 15.8 | D4: 2970 | E4: 93.3 | F4: 0.86 | G4: 1.8 | H4: 0.6 | I4: 7.0 | J4: 3.5 | K4: 25 | L4: 2630
A5: YX4002-2 | B5: 250 | C5: =B5/1.732/10/E5/F5*100 -> 18.0 | D5: 2970 | E5: 93.4 | F5: 0.86 | G5: 1.8 | H5: 0.6 | I5: 7.0 | J5: 3.55 | K5: 25.5 | L5: 2660
A6: YX4003-2 | B6: 280 | C6: 20.1 | D6: 2970 | E6: 93.6 | F6: 0.86 | G6: 1.8 | H6: 0.6 | I6: 7.0 | J6: 3.6 | K6: 26 | L6: 2680
A7: YX4004-2 | B7: 315 | C7: 22.5 | D7: 2972 | E7: 93.9 | F7: 0.86 | G7: 1.8 | H7: 0.6 | I7: 7.0 | J7: 3.7 | K7: 26.8 | L7: 2710
A8: YX4005-2 | B8: 355 | C8: 25.0 | D8: 2972 | E8: 94.3 | F8: 0.87 | G8: 1.8 | H8: 0.6 | I8: 7.0 | J8: 3.75 | K8: 27.5 | L8: 2750
A9: YX4006-2 | B9: 400 | C9: 28.1 | D9: 2972 | E9: 94.5 | F9: 0.87 | G9: 1.8 | H9: 0.6 | I9: 7.0 | J9: 3.8 | K9: 28.4 | L9: 2790
A10: YX4007-2 | B10: 450 | C10: 31.5 | D10: 2972 | E10: 94.7 | F10: 0.87 | G10: 1.8 | H10: 0.6 | I10: 7.0 | J10: 3.9 | K10: 29.2 | L10: 2810
A11: YX450S6-2 | B11: 220 | C11: 15.8 | D11: 2973 | E11: 93.3 | F11: 0.86 | G11: 1.8 | H11: 0.6 | I11: 7.0 | J11: 4 | K11: 30 | L11: 2820
A12: YX450S5-2 | B12: 250 | C12: 18.0 | D12: 2973 | E12: 93.4 | F12: 0.86 | G12: 1.8 | H12: 0.6 | I12: 7.0 | J12: 4.5 | K12: 31.1 | L12: 2860
A13: YX450S4-2 | B13: 280 | C13: 20.1 | D13: 2975 | E13: 93.6 | F13: 0.86 | G13: 1.8 | H13: 0.6 | I13: 7.0 | J13: 5.3 | K13: 31.8 | L13: 2960
A14: YX450S3-2 | B14: 315 | C14: 22.5 | D14: 2975 | E14: 93.9 | F14: 0.86 | G14: 1.8 | H14: 0.6 | I14: 7.0 | J14: 6.0 | K14: 32.5 | L14: 3060
A15: YX450S2-2 | B15: 355 | C15: 25.0 | D15: 2977 | E15: 94.3 | F15: 0.87 | G15: 1.8 | H15: 0.6 | I15: 7.0 | J15: 6.4 | K15: 34.3 | L15: 3130
A16: YX450S1-2 | B16: 400 | C16: 28.1 | D16: 2977 | E16: 94.5 | F16: 0.87 | G16: 1.8 | H16: 0.6 | I16: 7.0 | J16: 7.5 | K16: 35.1 | L16: 3230
A17: YX4501-2 | B17: 450 | C17: 31.5 | D17: 2979 | E17: 94.7 | F17: 0.87 | G17: 1.8 | H17: 0.6 | I17: 7.0 | J17: 8.4 | K17: 37.2 | L17: 3310
A18: YX4502-2 | B18: 500 | C18: 35.0 | D18: 2979 | E18: 94.9 | F18: 0.87 | G18: 1.8 | H18: 0.6 | I18: 7.0 | J18: 9.0 | K18: 41.2 | L18: 3400
A19: YX4503-2 | B19: 560 | C19: 39.1 | D19: 2980 | E19: 95.0 | F19: 0.87 | G19: 1.8 | H19: 0.6 | I19: 7.0 | J19: 9.7 | K19: 45.2 | L19: 3580
A20: YX4504-2 | B20: 630 | C20: 44.0 | D20: 2980 | E20: 95.0 | F20: 0.87 | G20: 1.8 | H20: 0.6 | I20: 7.0 | J20: 10.3 | K20: 50.1 | L20: 3750
A21: YX4505-2 | B21: 710 | C21: 49.0 | D21: 2980 | E21: 95.1 | F21: 0.88 | G21: 1.8 | H21: 0.6 | I21: 7.0 | J21: 11 | K21: 55.1 | L21: 3830
A22: YX4506-2 | B22: 800 | C22: 55.1 | D22: 2980 | E22: 95.3 | F22: 0.88 | G22: 1.8 | H22: 0.6 | I22: 7.0 | J22: 11.7 | K22: 60.2 | L22: 3920
A23: YX5001-2 | B23: 710 | C23: 49.0 | D23: 2981 | E23: 95.1 | F23: 0.88 | G23: 1.8 | H23: 0.6 | I23: 7.0 | J23: 13.7 | K23: 68.8 | L23: 4220
A24: YX5002-2 | B24: 800 | C24: 55.1 | D24: 2981 | E24: 95.3 | F24: 0.88 | G24: 1.8 | H24: 0.6 | I24: 7.0 | J24: 14.7 | K24: 75.5 | L24: 4450
A25: YX5003-2 | B25: 900 | C25: 61.9 | D25: 2981 | E25: 95.4 | F25: 0.88 | G25: 1.8 | H25: 0.6 | I25: 7.0 | J25: 16.7 | K25: 78.4 | L25: 4600
A26: YX5004-2 | B26: 1000 | C26: 68.7 | D26: 2981 | E26: 95.5 | F26: 0.88 | G26: 1.8 | H26: 0.6 | I26: 7.0 | J26: 17.7 | K26: 90.2 | L26: 4700
A27: YX5005-2 | B27: 1120 | C27: 76.9 | D27: 2982 | E27: 95.6 | F27: 0.88 | G27: 1.8 | H27: 0.6 | I27: 7.0 | J27: 18.7 | K27: 97.0 | L27: 4800
A28: YX5006-2 | B28: 1250 | C28: 84.6 | D28: 2982 | E28: 95.9 | F28: 0.89 | G28: 1.8 | H28: 0.6 | I28: 7.0 | J28: 19.7 | K28: 103.8 | L28: 4950
A29: YX5007-2 | B29: 1400 | C29: 94.6 | D29: 2983 | E29: 96.0 | F29: 0.89 | G29: 1.8 | H29: 0.6 | I29: 7.0 | J29: 20.7 | K29: 110.6 | L29: 5100
A30: YX5602-2 | B30: 1250 | C30: 84.6 | D30: 2983 | E30: 95.9 | F30: 0.89 | G30: 1.8 | H30: 0.6 | I30: 7.0 | J30: 30.8 | K30: 98.0 | L30: 8000
A31: YX5603-2 | B31: 1400 | C31: 94.6 | D31: 2983 | E31: 96.0 | F31: 0.89 | G31: 1.8 | H31: 0.6 | I31: 7.0 | J31: 34.7 | K31: 99.0 | L31: 8250
A32: YX5604-2 | B32: 1600 | C32: 108 | D32: 2983 | E32: 96.0 | F32: 0.89 | G32: 1.8 | H32: 0.6 | I32: 7.0 | J32: 38.8 | K32: 100 | L32: 8500
A33: YX5605-2 | B33: 1800 | C33: 120 | D33: 2983 | E33: 96.1 | F33: 0.90 | G33: 1.8 | H33: 0.6 | I33: 7.0 | J33: 42.9 | K33: 101 | L33: 8750
A34: YX5606-2 | B34: 2000 | C34: 133 | D34: 2983 | E34: 96.3 | F34: 0.90 | G34: 1.8 | H34: 0.6 | I34: 7.0 | J34: 47 | K34: 102 | L34: 9000
A35: YX630S1-2 | B35: 1800 | C35: 120 | D35: 2983 | E35: 96.1 | F35: 0.90 | G35: 1.8 | H35: 0.6 | I35: 7.0 | J35: 39 | K35: 108 | L35: 9650
A36: YX6301-2 | B36: 2000 | C36: 133 | D36: 2983 | E36: 96.3 | F36: 0.90 | G36: 1.8 | H36: 0.6 | I36: 7.0 | J36: 44 | K36: 110 | L36: 10050
A37: YX6302-2 | B37: 2100 | C37: 140 | D37: 2984 | E37: 96.4 | F37: 0.90 | G37: 1.8 | H37: 0.6 | I37: 7.0 | J37: 47 | K37: 112 | L37: 10450
A38: YX6303-2 | B38: 2240 | C38: 149 | D38: 2984 | E38: 96.5 | F38: 0.90 | G38: 1.8 | H38: 0.6 | I38: 7.0 | J38: 51 | K38: 114 | L38: 10900
A39: YX6304-2 | B39: 2350 | C39: 156 | D39: 2985 | E39: 96.5 | F39: 0.90 | G39: 1.8 | H39: 0.6 | I39: 7.0 | J39: 57 | K39: 118 | L39: 11300
A40: YX6305-2 | B40: 2500 | C40: 166 | D40: 2985 | E40: 96.5 | F40: 0.90 | G40: 1.8 | H40: 0.6 | I40: 7.0 | J40: 63 | K40: 122 | L40: 11700
A41: YX6306-2 | B41: 2650 | C41: 176 | D41: 2985 | E41: 96.5 | F41: 0.90 | G41: 1.8 | H41: 0.6 | I41: 7.0 | J41: 69 | K41: 126 | L41: 12100
A42: YX6307-2 | B42: 2800 | C42: 186 | D42: 2985 | E42: 96.5 | F42: 0.90 | G42: 1.8 | H42: 0.6 | I42: 7.0 | J42: 75 | K42: 130 | L42: 12500
A43: YX6308-2 | B43: 2900 | C43: 193 | D43: 2985 | E43: 96.5 | F43: 0.90 | G43: 1.8 | H43: 0.6 | I43: 7.0 | J43: 81 | K43: 134 | L43: 12900
A44: YX6309-2 | B44: 3150 | C44: 209 | D44: 2985 | E44: 96.6 | F44: 0.90 | G44: 1.8 | H44: 0.6 | I44: 7.0 | J44: 87 | K44: 138 | L44: 13300
A45: YX4001-4 | B45: 220 | C45: 16.0 | D45: 1475 | E45: 93.3 | F45: 0.85 | G45: 1.8 | H45: 0.7 | I45: 7.0 | J45: 8 | K45: 75 | L45: 2580
A46: YX4002-4 | B46: 250 | C46: 18.2 | D46: 1475 | E46: 93.4 | F46: 0.85 | G46: 1.8 | H46: 0.7 | I46: 7.0 | J46: 8.1 | K46: 76 | L46: 2600
A47: YX4003-4 | B47: 280 | C47: 20.3 | D47: 1475 | E47: 93.5 | F47: 0.85 | G47: 1.8 | H47: 0.7 | I47: 7.0 | J47: 8.2 | K47: 77 | L47: 2630
A48: YX4004-4 | B48: 315 | C48: 22.8 | D48: 1475 | E48: 93.8 | F48: 0.85 | G48: 1.8 | H48: 0.7 | I48: 7.0 | J48: 8.4 | K48: 78 | L48: 2650
A49: YX4005-4 | B49: 355 | C49: 25.4 | D49: 1475 | E49: 93.9 | F49: 0.86 | G49: 1.8 | H49: 0.7 | I49: 7.0 | J49: 8.5 | K49: 79 | L49: 2680
A50: YX4006-4 | B50: 400 | C50: 28.6 | D50: 1476 | E50: 94.0 | F50: 0.86 | G50: 1.8 | H50: 0.7 | I50: 7.0 | J50: 8.6 | K50: 80 | L50: 2710
A51: YX4007-4 | B51: 450 | C51: 32.0 | D51: 1476 | E51: 94.4 | F51: 0.86 | G51: 1.8 | H51: 0.7 | I51: 7.0 | J51: 8.8 | K51: 81 | L51: 2730
A52: YX450S6-4 | B52: 220 | C52: 16.0 | D52: 1477 | E52: 93.3 | F52: 0.85 | G52: 1.8 | H52: 0.7 | I52: 7.0 | J52: 9.0 | K52: 78.0 | L52: 2820
A53: YX450S5-4 | B53: 250 | C53: 18.2 | D53: 1477 | E53: 93.4 | F53: 0.85 | G53: 1.8 | H53: 0.7 | I53: 7.0 | J53: 9.5 | K53: 87.0 | L53: 2820
A54: YX450S4-4 | B54: 280 | C54: 20.3 | D54: 1478 | E54: 93.5 | F54: 0.85 | G54: 1.8 | H54: 0.7 | I54: 7.0 | J54: 10.2 | K54: 97.0 | L54: 2870
A55: YX450S3-4 | B55: 315 | C55: 22.8 | D55: 1478 | E55: 93.8 | F55: 0.85 | G55: 1.8 | H55: 0.7 | I55: 7.0 | J55: 10.8 | K55: 107 | L55: 2910
A56: YX450S2-4 | B56: 355 | C56: 25.4 | D56: 1478 | E56: 93.9 | F56: 0.86 | G56: 1.8 | H56: 0.7 | I56: 7.0 | J56: 12.0 | K56: 119 | L56: 2930
A57: YX450S1-4 | B57: 400 | C57: 28.6 | D57: 1480 | E57: 94.0 | F57: 0.86 | G57: 1.8 | H57: 0.7 | I57: 7.0 | J57: 12.5 | K57: 132 | L57: 3020
A58: YX4501-4 | B58: 450 | C58: 32.0 | D58: 1480 | E58: 94.4 | F58: 0.86 | G58: 1.8 | H58: 0.7 | I58: 7.0 | J58: 12.9 | K58: 147 | L58: 3330
A59: YX4502-4 | B59: 500 | C59: 35.5 | D59: 1482 | E59: 94.5 | F59: 0.86 | G59: 1.8 | H59: 0.7 | I59: 7.0 | J59: 13.4 | K59: 161 | L59: 3330
A60: YX4503-4 | B60: 560 | C60: 39.7 | D60: 1485 | E60: 94.7 | F60: 0.86 | G60: 1.8 | H60: 0.7 | I60: 7.0 | J60: 13.8 | K60: 178 | L60: 3510
A61: YX4504-4 | B61: 630 | C61: 44.6 | D61: 1485 | E61: 94.9 | F61: 0.86 | G61: 1.8 | H61: 0.7 | I61: 7.0 | J61: 14.7 | K61: 196 | L61: 3660
A62: YX4505-4 | B62: 710 | C62: 49.4 | D62: 1485 | E62: 95.4 | F62: 0.87 | G62: 1.8 | H62: 0.7 | I62: 7.0 | J62: 15.6 | K62: 208 | L62: 3340
A63: YX4506-4 | B63: 800 | C63: 55.6 | D63: 1486 | E63: 95.5 | F63: 0.87 | G63: 1.8 | H63: 0.7 | I63: 7.0 | J63: 16.5 | K63: 214 | L63: 3520
A64: YX5001-4 | B64: 710 | C64: 49.4 | D64: 1486 | E64: 95.4 | F64: 0.87 | G64: 1.8 | H64: 0.7 | I64: 7.0 | J64: 22.0 | K64: 217 | L64: 4600
A65: YX5002-4 | B65: 800 | C65: 55.6 | D65: 1487 | E65: 95.5 | F65: 0.87 | G65: 1.8 | H65: 0.7 | I65: 7.0 | J65: 23.0 | K65: 240 | L65: 4700
A66: YX5003-4 | B66: 900 | C66: 61.8 | D66: 1487 | E66: 95.6 | F66: 0.88 | G66: 1.8 | H66: 0.7 | I66: 7.0 | J66: 25.0 | K66: 265 | L66: 4850
A67: YX5004-4 | B67: 1000 | C67: 68.6 | D67: 1487 | E67: 95.7 | F67: 0.88 | G67: 1.8 | H67: 0.7 | I67: 7.0 | J67: 27.0 | K67: 289 | L67: 5100
A68: YX5005-4 | B68: 1120 | C68: 76.7 | D68: 1487 | E68: 95.8 | F68: 0.88 | G68: 1.8 | H68: 0.7 | I68: 7.0 | J68: 29.0 | K68: 317 | L68: 5450
A69: YX5006-4 | B69: 1250 | C69: =B69/1.732/10/E69/F69*100 -> 84.5 | D69: 1487 | E69: 96.0 | F69: 0.89 | G69: 1.8 | H69: 0.7 | I69: 7.0 | J69: 31.0 | K69: 338 | L69: 5750
A70: YX5007-4 | B70: 1400 | C70: 94.5 | D70: 1487 | E70: 96.1 | F70: 0.89 | G70: 1.8 | H70: 0.7 | I70: 7.0 | J70: 33.0 | K70: 349 | L70: 6050
A71: YX5602-4 | B71: 1250 | C71: 84.5 | D71: 1487 | E71: 96.0 | F71: 0.89 | G71: 1.8 | H71: 0.7 | I71: 7.0 | J71: 40.0 | K71: 347 | L71: 6625
A72: YX5603-4 | B72: 1400 | C72: 94.5 | D72: 1487 | E72: 96.1 | F72: 0.89 | G72: 1.8 | H72: 0.7 | I72: 7.0 | J72: 43.0 | K72: 379 | L72: 7120
A73: YX5604-4 | B73: 1600 | C73: 108 | D73: 1487 | E73: 96.2 | F73: 0.89 | G73: 1.8 | H73: 0.7 | I73: 7.0 | J73: 46.0 | K73: 421 | L73: 7550
A74: YX5605-4 | B74: 1800 | C74: 121 | D74: 1487 | E74: 96.3 | F74: 0.89 | G74: 1.8 | H74: 0.7 | I74: 7.0 | J74: 49.0 | K74: 453 | L74: 8050
A75: YX5606-4 | B75: 2000 | C75: 134 | D75: 1487 | E75: 96.5 | F75: 0.89 | G75: 1.8 | H75: 0.7 | I75: 7.0 | J75: 52.0 | K75: 488 | L75: 8500
A76: YX630S1-4 | B76: 1800 | C76: 121 | D76: 1488 | E76: 96.3 | F76: 0.89 | G76: 1.8 | H76: 0.6 | I76: 7.0 | J76: 86.0 | K76: 460 | L76: 9690
A77: YX6301-4 | B77: 2000 | C77: 134 | D77: 1488 | E77: 96.5 | F77: 0.89 | G77: 1.8 | H77: 0.6 | I77: 7.0 | J77: 91.0 | K77: 498 | L77: 10100
A78: YX6302-4 | B78: 2100 | C78: 141 | D78: 1488 | E78: 96.5 | F78: 0.89 | G78: 1.8 | H78: 0.6 | I78: 7.0 | J78: 93.0 | K78: 520 | L78: 10540
A79: YX6303-4 | B79: 2240 | C79: 150 | D79: 1488 | E79: 96.6 | F79: 0.89 | G79: 1.8 | H79: 0.6 | I79: 7.0 | J79: 96.0 | K79: 540 | L79: 11150
A80: YX6304-4 | B80: 2350 | C80: 158 | D80: 1488 | E80: 96.6 | F80: 0.89 | G80: 1.8 | H80: 0.6 | I80: 7.0 | J80: 98 | K80: 560 | L80: 11750
A81: YX6305-4 | B81: 2500 | C81: 168 | D81: 1488 | E81: 96.6 | F81: 0.89 | G81: 1.8 | H81: 0.6 | I81: 7.0 | J81: 100 | K81: 580 | L81: 12350
A82: YX6306-4 | B82: 2650 | C82: 178 | D82: 1488 | E82: 96.6 | F82: 0.89 | G82: 1.8 | H82: 0.6 | I82: 7.0 | J82: 103 | K82: 600 | L82: 12950
A83: YX6307-4 | B83: 2800 | C83: 188 | D83: 1488 | E83: 96.6 | F83: 0.89 | G83: 1.8 | H83: 0.6 | I83: 7.0 | J83: 105 | K83: 620 | L83: 13550
A84: YX6308-4 | B84: 2900 | C84: 195 | D84: 1488 | E84: 96.6 | F84: 0.89 | G84: 1.8 | H84: 0.6 | I84: 7.0 | J84: 107 | K84: 640 | L84: 14150
A85: YX6309-4 | B85: 3150 | C85: 211 | D85: 1488 | E85: 96.7 | F85: 0.89 | G85: 1.8 | H85: 0.6 | I85: 7.0 | J85: 110 | K85: 660 | L85: 14750
A86: YX4004-6 | B86: 220 | C86: 17.1 | D86: 985 | E86: 92.9 | F86: 0.80 | G86: 1.8 | H86: 0.7 | I86: 6.0 | J86: 11 | K86: 180 | L86: 2730
A87: YX4005-6 | B87: 250 | C87: 19.4 | D87: 985 | E87: 93.0 | F87: 0.80 | G87: 1.8 | H87: 0.7 | I87: 6.0 | J87: 11.6 | K87: 187 | L87: 2760
A88: YX4006-6 | B88: 280 | C88: 21.7 | D88: 985 | E88: 93.2 | F88: 0.80 | G88: 1.8 | H88: 0.7 | I88: 6.0 | J88: 12.2 | K88: 195 | L88: 2790
A89: YX4007-6 | B89: 315 | C89: 23.7 | D89: 985 | E89: 93.5 | F89: 0.82 | G89: 1.8 | H89: 0.7 | I89: 6.0 | J89: 12.8 | K89: 205 | L89: 2830
A90: YX450S3-6 | B90: 220 | C90: 17.1 | D90: 987 | E90: 92.9 | F90: 0.80 | G90: 1.8 | H90: 0.7 | I90: 6.0 | J90: 13.2 | K90: 210 | L90: 2900
A91: YX450S2-6 | B91: 250 | C91: 19.4 | D91: 987 | E91: 93.0 | F91: 0.80 | G91: 1.8 | H91: 0.7 | I91: 6.0 | J91: 13.4 | K91: 236 | L91: 2950
A92: YX450S1-6 | B92: 280 | C92: 21.7 | D92: 987 | E92: 93.2 | F92: 0.80 | G92: 1.8 | H92: 0.7 | I92: 6.0 | J92: 13.6 | K92: 261 | L92: 3050
A93: YX4501-6 | B93: 315 | C93: 23.7 | D93: 987 | E93: 93.5 | F93: 0.82 | G93: 1.8 | H93: 0.7 | I93: 6.0 | J93: 14.7 | K93: 291 | L93: 3170
A94: YX4502-6 | B94: 355 | C94: 26.4 | D94: 988 | E94: 93.7 | F94: 0.83 | G94: 1.8 | H94: 0.7 | I94: 6.0 | J94: 15.7 | K94: 324 | L94: 3275
A95: YX4503-6 | B95: 400 | C95: 29.6 | D95: 988 | E95: 93.9 | F95: 0.83 | G95: 1.8 | H95: 0.7 | I95: 6.0 | J95: 17.7 | K95: 361 | L95: 3395
A96: YX4504-6 | B96: 450 | C96: 33.3 | D96: 988 | E96: 94.0 | F96: 0.83 | G96: 1.8 | H96: 0.7 | I96: 6.0 | J96: 18.2 | K96: 400 | L96: 3477
A97: YX4505-6 | B97: 500 | C97: 36.8 | D97: 988 | E97: 94.5 | F97: 0.83 | G97: 1.8 | H97: 0.7 | I97: 6.0 | J97: 19.8 | K97: 420 | L97: 3620
A98: YX4506-6 | B98: 560 | C98: 40.7 | D98: 988 | E98: 94.6 | F98: 0.84 | G98: 1.8 | H98: 0.7 | I98: 6.0 | J98: 21.9 | K98: 440 | L98: 3790
A99: YX5001-6 | B99: 500 | C99: 36.8 | D99: 988 | E99: 94.5 | F99: 0.83 | G99: 1.8 | H99: 0.7 | I99: 6.0 | J99: 23.0 | K99: 440 | L99: 4120
A100: YX5002-6 | B100: 560 | C100: 40.7 | D100: 988 | E100: 94.6 | F100: 0.84 | G100: 1.8 | H100: 0.7 | I100: 6.0 | J100: 25.0 | K100: 486 | L100: 4250
A101: YX5003-6 | B101: 630 | C101: 45.6 | D101: 988 | E101: 94.9 | F101: 0.84 | G101: 1.8 | H101: 0.7 | I101: 6.0 | J101: 27.0 | K101: 539 | L101: 4410
A102: YX5004-6 | B102: 710 | C102: 51.4 | D102: 988 | E102: 95.0 | F102: 0.84 | G102: 1.8 | H102: 0.7 | I102: 6.0 | J102: 29.0 | K102: 599 | L102: 4530
A103: YX5005-6 | B103: 800 | C103: 57.8 | D103: 988 | E103: 95.2 | F103: 0.84 | G103: 1.8 | H103: 0.7 | I103: 6.0 | J103: 31.0 | K103: 664 | L103: 4680
A104: YX5006-6 | B104: 900 | C104: 64.1 | D104: 989 | E104: 95.4 | F104: 0.85 | G104: 1.8 | H104: 0.7 | I104: 6.0 | J104: 33.0 | K104: 729 | L104: 4830
A105: YX5007-6 | B105: 1000 | C105: 71.1 | D105: 989 | E105: 95.5 | F105: 0.85 | G105: 1.8 | H105: 0.7 | I105: 6.0 | J105: 35.0 | K105: 794 | L105: 4980
A106: YX5601-6 | B106: 900 | C106: 64.1 | D106: 989 | E106: 95.4 | F106: 0.85 | G106: 1.8 | H106: 0.7 | I106: 6.0 | J106: 49.0 | K106: 735 | L106: 6010
A107: YX5602-6 | B107: 1000 | C107: 71.1 | D107: 989 | E107: 95.5 | F107: 0.85 | G107: 1.8 | H107: 0.7 | I107: 6.0 | J107: 53.0 | K107: 805 | L107: 6350
A108: YX5603-6 | B108: 1120 | C108: 79.5 | D108: 989 | E108: 95.7 | F108: 0.85 | G108: 1.8 | H108: 0.7 | I108: 6.0 | J108: 56.0 | K108: 886 | L108: 6620
A109: YX5604-6 | B109: 1250 | C109: 87.5 | D109: 989 | E109: 95.9 | F109: 0.86 | G109: 1.8 | H109: 0.7 | I109: 6.0 | J109: 60.0 | K109: 972 | L109: 6900
A110: YX5605-6 | B110: 1400 | C110: 97.8 | D110: 989 | E110: 96.1 | F110: 0.86 | G110: 1.8 | H110: 0.7 | I110: 6.0 | J110: 64.0 | K110: 1058 | L110: 7180
A111: YX5606-6 | B111: 1600 | C111: 112 | D111: 989 | E111: 96.2 | F111: 0.86 | G111: 1.8 | H111: 0.7 | I111: 6.0 | J111: 68.0 | K111: 1144 | L111: 7460
A112: YX6302-6 | B112: 1400 | C112: 97.8 | D112: 989 | E112: 96.1 | F112: 0.86 | G112: 1.8 | H112: 0.6 | I112: 6.0 | J112: 114 | K112: 1068 | L112: 9700
A113: YX6303-6 | B113: 1600 | C113: 112 | D113: 990 | E113: 96.2 | F113: 0.86 | G113: 1.8 | H113: 0.6 | I113: 6.0 | J113: 121 | K113: 1192 | L113: 10200
A114: YX6304-6 | B114: 1800 | C114: 126 | D114: 991 | E114: 96.2 | F114: 0.86 | G114: 1.8 | H114: 0.6 | I114: 6.0 | J114: 128 | K114: 1312 | L114: 10800
A115: YX6305-6 | B115: 2000 | C115: 139 | D115: 991 | E115: 96.3 | F115: 0.86 | G115: 1.8 | H115: 0.6 | I115: 6.0 | J115: 135 | K115: 1432 | L115: 11200
A116: YX6306-6 | B116: 2100 | C116: 146 | D116: 991 | E116: 96.3 | F116: 0.86 | G116: 1.8 | H116: 0.6 | I116: 6.0 | J116: 142 | K116: 1552 | L116: 11600
A117: YX6307-6 | B117: 2240 | C117: 156 | D117: 993 | E117: 96.3 | F117: 0.86 | G117: 1.8 | H117: 0.6 | I117: 6.0 | J117: 149 | K117: 1672 | L117: 12050
A118: YX6308-6 | B118: 2350 | C118: 164 | D118: 993 | E118: 96.3 | F118: 0.86 | G118: 1.8 | H118: 0.6 | I118: 6.0 | J118: 156 | K118: 1792 | L118: 12450
A119: YX6309-6 | B119: 2500 | C119: 174 | D119: 993 | E119: 96.3 | F119: 0.86 | G119: 1.8 | H119: 0.6 | I119: 6.0 | J119: 163 | K119: 1912 | L119: 12850
A120: YX4502-8 | B120: 220 | C120: 18.0 | D120: 741 | E120: 92.6 | F120: 0.76 | G120: 1.8 | H120: 0.7 | I120: 6.0 | J120: 16.0 | K120: 423 | L120: 3027
A121: YX4503-8 | B121: 250 | C121: 20.5 | D121: 741 | E121: 92.8 | F121: 0.76 | G121: 1.8 | H121: 0.7 | I121: 6.0 | J121: 17.0 | K121: 476 | L121: 3341
A122: YX4504-8 | B122: 280 | C122: 22.9 | D122: 741 | E122: 93.0 | F122: 0.76 | G122: 1.8 | H122: 0.7 | I122: 6.0 | J122: 18.0 | K122: 528 | L122: 3483
A123: YX4505-8 | B123: 315 | C123: 25.3 | D123: 741 | E123: 93.5 | F123: 0.77 | G123: 1.8 | H123: 0.7 | I123: 6.0 | J123: 19.0 | K123: 575 | L123: 3625
A124: YX4506-8 | B124: 355 | C124: 28.4 | D124: 741 | E124: 93.7 | F124: 0.77 | G124: 1.8 | H124: 0.7 | I124: 6.0 | J124: 20.0 | K124: 625 | L124: 3715
A125: YX500S1-8 | B125: 315 | C125: 25.3 | D125: 741 | E125: 93.5 | F125: 0.77 | G125: 1.8 | H125: 0.7 | I125: 6.0 | J125: 22.0 | K125: 588 | L125: 3770
A126: YX5001-8 | B126: 355 | C126: 28.4 | D126: 742 | E126: 93.7 | F126: 0.77 | G126: 1.8 | H126: 0.7 | I126: 6.0 | J126: 24.0 | K126: 656 | L126: 3950
A127: YX5002-8 | B127: 400 | C127: 31.6 | D127: 742 | E127: 93.8 | F127: 0.78 | G127: 1.8 | H127: 0.7 | I127: 6.0 | J127: 26.0 | K127: 730 | L127: 4200
A128: YX5003-8 | B128: 450 | C128: 35.5 | D128: 742 | E128: 93.9 | F128: 0.78 | G128: 1.8 | H128: 0.7 | I128: 6.0 | J128: 28.0 | K128: 812 | L128: 4300
A129: YX5004-8 | B129: 500 | C129: 38.7 | D129: 742 | E129: 94.4 | F129: 0.79 | G129: 1.8 | H129: 0.7 | I129: 6.0 | J129: 30.0 | K129: 893 | L129: 4700
A130: YX5005-8 | B130: 560 | C130: 43.3 | D130: 742 | E130: 94.5 | F130: 0.79 | G130: 1.8 | H130: 0.7 | I130: 6.0 | J130: 32.0 | K130: 989 | L130: 4840
A131: YX5006-8 | B131: 630 | C131: 46.7 | D131: 742 | E131: 94.9 | F131: 0.82 | G131: 1.8 | H131: 0.7 | I131: 6.0 | J131: 34.0 | K131: 1050 | L131: 5050
A132: YX5007-8 | B132: 710 | C132: 52.6 | D132: 743 | E132: 95.0 | F132: 0.82 | G132: 1.8 | H132: 0.7 | I132: 6.0 | J132: 36.0 | K132: 1090 | L132: 5220
A133: YX5601-8 | B133: 630 | C133: =B133/1.732/10/E133/F133*100 -> 46.7 | D133: 743 | E133: 94.9 | F133: 0.82 | G133: 1.8 | H133: 0.7 | I133: 6.0 | J133: 56.0 | K133: 1098 | L133: 6465
A134: YX5602-8 | B134: 710 | C134: 52.6 | D134: 743 | E134: 95.0 | F134: 0.82 | G134: 1.8 | H134: 0.7 | I134: 6.0 | J134: 60.0 | K134: 1221 | L134: 6610
A135: YX5603-8 | B135: 800 | C135: 59.2 | D135: 744 | E135: 95.2 | F135: 0.82 | G135: 1.8 | H135: 0.7 | I135: 6.0 | J135: 63.0 | K135: 1357 | L135: 6760
A136: YX5604-8 | B136: 900 | C136: 66.5 | D136: 744 | E136: 95.3 | F136: 0.82 | G136: 1.8 | H136: 0.7 | I136: 6.0 | J136: 67.0 | K136: 1505 | L136: 6900
A137: YX5605-8 | B137: 1000 | C137: 72.8 | D137: 744 | E137: 95.5 | F137: 0.83 | G137: 1.8 | H137: 0.7 | I137: 6.0 | J137: 71.0 | K137: 1620 | L137: 7040
A138: YX5606-8 | B138: 1120 | C138: 81.5 | D138: 744 | E138: 95.6 | F138: 0.83 | G138: 1.8 | H138: 0.7 | I138: 6.0 | J138: 75.0 | K138: 1750 | L138: 7240
A139: YX6304-8 | B139: 1000 | C139: 72.8 | D139: 744 | E139: 95.5 | F139: 0.83 | G139: 1.8 | H139: 0.7 | I139: 6.0 | J139: 141 | K139: 1650 | L139: 10100
A140: YX6305-8 | B140: 1120 | C140: 81.5 | D140: 744 | E140: 95.6 | F140: 0.83 | G140: 1.8 | H140: 0.7 | I140: 6.0 | J140: 149 | K140: 1820 | L140: 10550
A141: YX6306-8 | B141: 1250 | C141: 90.8 | D141: 744 | E141: 95.8 | F141: 0.83 | G141: 1.8 | H141: 0.7 | I141: 6.0 | J141: 157 | K141: 2001 | L141: 10920
A142: YX6307-8 | B142: 1400 | C142: 102 | D142: 745 | E142: 95.8 | F142: 0.83 | G142: 1.8 | H142: 0.7 | I142: 6.0 | J142: 165 | K142: 2182 | L142: 11290
A143: YX6308-8 | B143: 1600 | C143: 116 | D143: 745 | E143: 95.8 | F143: 0.83 | G143: 1.8 | H143: 0.7 | I143: 6.0 | J143: 173 | K143: 2363 | L143: 11660
A144: YX6309-8 | B144: 1800 | C144: 131 | D144: 745 | E144: 95.8 | F144: 0.83 | G144: 1.8 | H144: 0.7 | I144: 6.0 | J144: 181 | K144: 2544 | L144: 12030
A145: YX4505-10 | B145: 220 | C145: 19.1 | D145: 590 | E145: 92.5 | F145: 0.72 | G145: 1.8 | H145: 0.7 | I145: 5.5 | J145: 26 | K145: 680 | L145: 3800
A146: YX4506-10 | B146: 250 | C146: 21.3 | D146: 590 | E146: 92.7 | F146: 0.73 | G146: 1.8 | H146: 0.7 | I146: 5.5 | J146: 27 | K146: 710 | L146: 3880
A147: YX500S1-10 | B147: 220 | C147: 19.1 | D147: 592 | E147: 92.5 | F147: 0.72 | G147: 1.8 | H147: 0.7 | I147: 5.5 | J147: 27.0 | K147: 740 | L147: 4650
A148: YX5001-10 | B148: 250 | C148: 21.3 | D148: 592 | E148: 92.7 | F148: 0.73 | G148: 1.8 | H148: 0.7 | I148: 5.5 | J148: 27.5 | K148: 820 | L148: 4750
A149: YX5002-10 | B149: 280 | C149: 23.5 | D149: 592 | E149: 93.1 | F149: 0.74 | G149: 1.8 | H149: 0.7 | I149: 5.5 | J149: 28.0 | K149: 910 | L149: 4870
A150: YX5003-10 | B150: 315 | C150: 26.3 | D150: 592 | E150: 93.4 | F150: 0.74 | G150: 1.8 | H150: 0.7 | I150: 5.5 | J150: 30.0 | K150: 1014 | L150: 4990
A151: YX5004-10 | B151: 355 | C151: 29.2 | D151: 592 | E151: 93.5 | F151: 0.75 | G151: 1.8 | H151: 0.7 | I151: 5.5 | J151: 31.3 | K151: 1131 | L151: 5120
A152: YX5005-10 | B152: 400 | C152: 32.9 | D152: 592 | E152: 93.6 | F152: 0.75 | G152: 1.8 | H152: 0.7 | I152: 5.5 | J152: 32.0 | K152: 1261 | L152: 5240
A153: YX5006-10 | B153: 450 | C153: 36.0 | D153: 592 | E153: 93.8 | F153: 0.77 | G153: 1.8 | H153: 0.7 | I153: 5.5 | J153: 32.7 | K153: 1371 | L153: 5360
A154: YX5007-10 | B154: 500 | C154: 39.9 | D154: 593 | E154: 94.0 | F154: 0.77 | G154: 1.8 | H154: 0.7 | I154: 5.5 | J154: 33.4 | K154: 1480 | L154: 5480
A155: YX560S1-10 | B155: 450 | C155: 36.0 | D155: 593 | E155: 93.8 | F155: 0.77 | G155: 1.8 | H155: 0.7 | I155: 6.0 | J155: 75.0 | K155: 1403 | L155: 6360
A156: YX5601-10 | B156: 500 | C156: 39.9 | D156: 594 | E156: 94.0 | F156: 0.77 | G156: 1.8 | H156: 0.7 | I156: 6.0 | J156: 80.0 | K156: 1544 | L156: 6560
A157: YX5602-10 | B157: 560 | C157: 44.1 | D157: 594 | E157: 94.1 | F157: 0.78 | G157: 1.8 | H157: 0.7 | I157: 6.0 | J157: 84.0 | K157: 1710 | L157: 6770
A158: YX5603-10 | B158: 630 | C158: 49.5 | D158: 595 | E158: 94.3 | F158: 0.78 | G158: 1.8 | H158: 0.7 | I158: 6.0 | J158: 89.0 | K158: 1902 | L158: 6980
A159: YX5604-10 | B159: 710 | C159: 55.6 | D159: 595 | E159: 94.5 | F159: 0.78 | G159: 1.8 | H159: 0.7 | I159: 6.0 | J159: 94.0 | K159: 2090 | L159: 7190
A160: YX5605-10 | B160: 800 | C160: 60.8 | D160: 595 | E160: 94.9 | F160: 0.80 | G160: 1.8 | H160: 0.7 | I160: 6.0 | J160: 99.0 | K160: 2280 | L160: 7400
A161: YX5606-10 | B161: 900 | C161: 68.3 | D161: 595 | E161: 95.1 | F161: 0.80 | G161: 1.8 | H161: 0.7 | I161: 6.0 | J161: 104.0 | K161: 2400 | L161: 7610
A162: YX6303-10 | B162: 800 | C162: 60.8 | D162: 595 | E162: 94.9 | F162: 0.80 | G162: 1.8 | H162: 0.7 | I162: 6.0 | J162: 144.0 | K162: 2355 | L162: 10120
A163: YX6304-10 | B163: 900 | C163: 68.3 | D163: 595 | E163: 95.1 | F163: 0.80 | G163: 1.8 | H163: 0.7 | I163: 6.0 | J163: 153 | K163: 2614 | L163: 10570
A164: YX6305-10 | B164: 1000 | C164: 75.9 | D164: 596 | E164: 95.1 | F164: 0.80 | G164: 1.8 | H164: 0.7 | I164: 6.0 | J164: 161 | K164: 2870 | L164: 10940
A165: YX6306-10 | B165: 1120 | C165: 84.9 | D165: 596 | E165: 95.2 | F165: 0.80 | G165: 1.8 | H165: 0.7 | I165: 6.0 | J165: 169 | K165: 3170 | L165: 11300
A166: YX6307-10 | B166: 1250 | C166: 94.7 | D166: 596 | E166: 95.3 | F166: 0.80 | G166: 1.8 | H166: 0.7 | I166: 6.0 | J166: 177 | K166: 3470 | L166: 11660
A167: YX6308-10 | B167: 1400 | C167: 106 | D167: 596 | E167: 95.3 | F167: 0.80 | G167: 1.8 | H167: 0.7 | I167: 6.0 | J167: 185 | K167: 3770 | L167: 12020
A168: YX6309-10 | B168: 1600 | C168: 121 | D168: 596 | E168: 95.3 | F168: 0.80 | G168: 1.8 | H168: 0.7 | I168: 6.0 | J168: 193 | K168: 4070 | L168: 12380
A169: YX5003-12 | B169: 220 | C169: 19.1 | D169: 493 | E169: 92.4 | F169: 0.72 | G169: 1.8 | H169: 0.7 | I169: 5.5 | J169: 43 | K169: 1135 | L169: 4920
A170: YX5004-12 | B170: 250 | C170: 21.6 | D170: 493 | E170: 92.6 | F170: 0.72 | G170: 1.8 | H170: 0.7 | I170: 5.5 | J170: 47 | K170: 1210 | L170: 5030
A171: YX5005-12 | B171: 280 | C171: 24.2 | D171: 494 | E171: 92.8 | F171: 0.72 | G171: 1.8 | H171: 0.7 | I171: 5.5 | J171: 50 | K171: 1418 | L171: 5180
A172: YX5006-12 | B172: 315 | C172: 26.8 | D172: 494 | E172: 93.1 | F172: 0.73 | G172: 1.8 | H172: 0.7 | I172: 5.5 | J172: 53 | K172: 1618 | L172: 5330
A173: YX5007-12 | B173: 355 | C173: 30.1 | D173: 494 | E173: 93.2 | F173: 0.73 | G173: 1.8 | H173: 0.7 | I173: 5.5 | J173: 56 | K173: 1780 | L173: 5480
A174: YX560S1-12 | B174: 315 | C174: 26.8 | D174: 494 | E174: 93.1 | F174: 0.73 | G174: 1.8 | H174: 0.7 | I174: 6.0 | J174: 73 | K174: 1580 | L174: 6250
A175: YX5601-12 | B175: 355 | C175: 30.1 | D175: 495 | E175: 93.2 | F175: 0.73 | G175: 1.8 | H175: 0.7 | I175: 6.0 | J175: 77 | K175: 1763 | L175: 6445
A176: YX5602-12 | B176: 400 | C176: 33.9 | D176: 495 | E176: 93.4 | F176: 0.73 | G176: 1.8 | H176: 0.7 | I176: 6.0 | J176: 82 | K176: 1967 | L176: 6640
A177: YX5603-12 | B177: 450 | C177: 38.1 | D177: 495 | E177: 93.5 | F177: 0.73 | G177: 1.8 | H177: 0.7 | I177: 6.0 | J177: 87 | K177: 2190 | L177: 6830
A178: YX5604-12 | B178: 500 | C178: 42.1 | D178: 495 | E178: 93.9 | F178: 0.73 | G178: 1.8 | H178: 0.7 | I178: 6.0 | J178: 92 | K178: 2411 | L178: 7020
A179: YX5605-12 | B179: 560 | C179: 46.4 | D179: 495 | E179: 94.1 | F179: 0.74 | G179: 1.8 | H179: 0.7 | I179: 6.0 | J179: 97 | K179: 2600 | L179: 7210
A180: YX5606-12 | B180: 630 | C180: 52.1 | D180: 495 | E180: 94.3 | F180: 0.74 | G180: 1.8 | H180: 0.7 | I180: 6.0 | J180: 102 | K180: 2820 | L180: 7400
A181: YX6303-12 | B181: 560 | C181: 46.4 | D181: 495 | E181: 94.1 | F181: 0.74 | G181: 1.8 | H181: 0.7 | I181: 6.0 | J181: 119 | K181: 2672 | L181: 9970
A182: YX6304-12 | B182: 630 | C182: 52.1 | D182: 495 | E182: 94.3 | F182: 0.74 | G182: 1.8 | H182: 0.7 | I182: 6.0 | J182: 136 | K182: 2974 | L182: 10420
A183: YX6305-12 | B183: 710 | C183: 58.6 | D183: 495 | E183: 94.5 | F183: 0.74 | G183: 1.8 | H183: 0.7 | I183: 6.0 | J183: 152 | K183: 3313 | L183: 10820
A184: YX6306-12 | B184: 800 | C184: 65.8 | D184: 495 | E184: 94.8 | F184: 0.74 | G184: 1.8 | H184: 0.7 | I184: 6.0 | J184: 160 | K184: 3688 | L184: 11190
A185: YX6307-12 | B185: 900 | C185: 74.1 | D185: 495 | E185: 94.8 | F185: 0.74 | G185: 1.8 | H185: 0.7 | I185: 6.0 | J185: 168 | K185: 4063 | L185: 11560
A186: YX6308-12 | B186: 1000 | C186: 82.3 | D186: 495 | E186: 94.8 | F186: 0.74 | G186: 1.8 | H186: 0.7 | I186: 6.0 | J186: 176 | K186: 4438 | L186: 11930
A187: YX6309-12 | B187: 1120 | C187: 92.2 | D187: 495 | E187: 94.8 | F187: 0.74 | G187: 1.8 | H187: 0.7 | I187: 6.0 | J187: 184 | K187: 4813 | L187: 12300
A189: 注：表中重量仅供参考。
